Workbook

Sheet Index
C1: JEN tariffs and customer outcomes
C2: Index
B5: Copyright Jemena Limited. All rights reserved. Jemena is not liable for any loss caused by reliance on this document.
B16: Model Index
C18: Description of model | D18: This model estimates the customer outcomes from JEN's proposed tariffs
C20: Sheet Name | D20: Sheet Description
C21: Input|2015 tariffs | D21: Inputs the JEN distribution services tariffs for the 2015 year
C22: Input|2016 proposed tariffs | D22: Inputs the JEN proposed distribution services tariffs for the 2016 year
C23: Input|2017 indicative tariffs | D23: Inputs the JEN indicative distribution services tariffs for the 2017 year
C24: Input|2018 indicative tariffs | D24: Inputs the JEN indicative distribution services tariffs for the 2018 year
C25: Input|2019 indicative tariffs | D25: Inputs the JEN indicative distribution services tariffs for the 2019 year
C26: Input|2020 indicative tariffs | D26: Inputs the JEN indicative distribution services tariffs for the 2020 year
C27: Input|archetype demand | D27: Inputs the demand levels for customer archetypes
C28: Calc|Customer tariff | D28: Calculates the customer outcomes on distribution services tariffs
C29: Calc|Customer Outcomes | D29: Calculates the overall impact to the customer of distribution services and advanced metering charges
C31: Version Control | D31: Developer | E31: Comments | F31: Date
C32: Version 1 | D32: Jemena Electricity Networks | E32: Submission model | F32: 2015-04-30
B35: End

Sheet Input|2015 tariffs
C1: =Index!$C$1 -> JEN tariffs and customer outcomes
C2: =Index!C21 -> Input|2015 tariffs
D4: Source | E4: Basis | F4: Tariff code
B6: Copyright Jemena Limited. All rights reserved. Jemena is not liable for any loss caused by reliance on this document.
B8: Input | Distribution services tariffs
C11: Tariff component | G11: Fixed (Standing charge) | H11: Unit rate | I11: Peak | J11: Off peak | K11: Summer peak | L11: Summer shoulder | M11: Summer off peak | N11: Non-summer peak | O11: Non-summer shoulder | P11: Non-summer off peak | Q11: Demand | R11: Demand
C12: Unit | G12: $ per customer pa | H12: c/kWh | I12: c/kWh | J12: c/kWh | K12: c/kWh | L12: c/kWh | M12: c/kWh | N12: c/kWh | O12: c/kWh | P12: c/kWh | Q12: $/kW | R12: $/kVA
C14: Residential
C15: Residential - General Purpose | D15: JEN | E15: $nominal | F15: A100 | G15: 26.033 | H15: 8.253 | I15: 0 | J15: 0 | K15: 0 | L15: 0 | M15: 0 | N15: 0 | O15: 0 | P15: 0 | Q15: 0 | R15: 0
C16: Residential - Flexible | D16: JEN | E16: $nominal | F16: A10X | G16: 26.033 | H16: 0 | I16: 13.98 | J16: 4.196 | K16: 13.98 | L16: 8.869 | M16: 4.196 | N16: 13.98 | O16: 8.869 | P16: 4.196 | Q16: 0 | R16: 0
C17: Residential - Time of Use Interval Meter | D17: JEN | E17: $nominal | F17: A10I | G17: 26.033 | H17: 0 | I17: 13.388 | J17: 2.093 | K17: 0 | L17: 0 | M17: 0 | N17: 0 | O17: 0 | P17: 0 | Q17: 0 | R17: 0
C18: Residential - TOU | D18: JEN | E18: $nominal | F18: A140 | G18: 45.834 | H18: 0 | I18: 9.472 | J18: 1.719 | K18: 0 | L18: 0 | M18: 0 | N18: 0 | O18: 0 | P18: 0 | Q18: 0 | R18: 0
C19: Residential - Off Peak Only | D19: JEN | E19: $nominal | F19: A180 | G19: 0 | H19: 0 | I19: 0 | J19: 1.727 | K19: 0 | L19: 0 | M19: 0 | N19: 0 | O19: 0 | P19: 0 | Q19: 0 | R19: 0
C21: Small business
C22: Small Business - General Purpose | D22: JEN | E22: $nominal | F22: A200 | G22: 68.076 | H22: 0 | I22: 9.397 | J22: 0 | K22: 0 | L22: 0 | M22: 0 | N22: 0 | O22: 0 | P22: 0 | Q22: 0 | R22: 0
C23: Small Business - TOU Weekdays | D23: JEN | E23: $nominal | F23: A210 | G23: 98.132 | H23: 0 | I23: 11.094 | J23: 1.859 | K23: 0 | L23: 0 | M23: 0 | N23: 0 | O23: 0 | P23: 0 | Q23: 0 | R23: 0
C24: Small Business - TOU Weekdays Demand | D24: JEN | E24: $nominal | F24: A230 | G24: 129.076 | H24: 0 | I24: 6.834 | J24: 2.172 | K24: 0 | L24: 0 | M24: 0 | N24: 0 | O24: 0 | P24: 0 | Q24: 67.597 | R24: 0
C25: Small Business - TOU Extended | D25: JEN | E25: $nominal | F25: A250 | G25: 98.132 | H25: 0 | I25: 9.771 | J25: 2.037 | K25: 0 | L25: 0 | M25: 0 | N25: 0 | O25: 0 | P25: 0 | Q25: 0 | R25: 0
C26: Small Business - TOU Extended Demand | D26: JEN | E26: $nominal | F26: A270 | G26: 129.076 | H26: 0 | I26: 5.112 | J26: 2.336 | K26: 0 | L26: 0 | M26: 0 | N26: 0 | O26: 0 | P26: 0 | Q26: 67.597 | R26: 0
C27: Small Business - Unmetered Supply | D27: JEN | E27: $nominal | F27: A290 | G27: 0 | H27: 0 | I27: 10.447 | J27: 1.837 | K27: 0 | L27: 0 | M27: 0 | N27: 0 | O27: 0 | P27: 0 | Q27: 0 | R27: 0
C29: Large business - low voltage
C30: Large Business - LV 0.4 - 0.8 GWh | D30: JEN | E30: $nominal | F30: A300 | G30: 1957.64 | H30: 0 | I30: 1.992 | J30: 0.648 | K30: 0 | L30: 0 | M30: 0 | N30: 0 | O30: 0 | P30: 0 | Q30: 108.734 | R30: 0
C31: Large Business – LVEN Annual Consumption <= 0.8 GWh | D31: JEN | E31: $nominal | F31: A30E | G31: 1957.64 | H31: 0 | I31: 2.011 | J31: 0.648 | K31: 0 | L31: 0 | M31: 0 | N31: 0 | O31: 0 | P31: 0 | Q31: 112.905 | R31: 0
C32: Large Business - LV 0.8+ - 2.2 GWh | D32: JEN | E32: $nominal | F32: A320 | G32: 3223.202 | H32: 0 | I32: 1.327 | J32: 0.626 | K32: 0 | L32: 0 | M32: 0 | N32: 0 | O32: 0 | P32: 0 | Q32: 100.507 | R32: 0
C33: Large Business - LVEN 0.8+ - 2.2 GWh | D33: JEN | E33: $nominal | F33: A32E | G33: 3223.202 | H33: 0 | I33: 1.326 | J33: 0.626 | K33: 0 | L33: 0 | M33: 0 | N33: 0 | O33: 0 | P33: 0 | Q33: 101.759 | R33: 0
C34: Large Business - LV 2.2+ - 6.0 GWh | D34: JEN | E34: $nominal | F34: A340 | G34: 4923.791 | H34: 0 | I34: 1.215 | J34: 0.466 | K34: 0 | L34: 0 | M34: 0 | N34: 0 | O34: 0 | P34: 0 | Q34: 99.422 | R34: 0
C35: Large Business - LVEN 2.2+ GWh | D35: JEN | E35: $nominal | F35: A34E | G35: 4923.791 | H35: 0 | I35: 1.215 | J35: 0.466 | K35: 0 | L35: 0 | M35: 0 | N35: 0 | O35: 0 | P35: 0 | Q35: 99.555 | R35: 0
C36: Large Business - LVMS 2.2+ - 6.0 GWh | D36: JEN | E36: $nominal | F36: A34M | G36: 2461.884 | H36: 0 | I36: 1.202 | J36: 0.466 | K36: 0 | L36: 0 | M36: 0 | N36: 0 | O36: 0 | P36: 0 | Q36: 68.879 | R36: 0
C37: Large Business - LV 6.0+ GWh | D37: JEN | E37: $nominal | F37: A370 | G37: 6406.861 | H37: 0 | I37: 1.179 | J37: 0.404 | K37: 0 | L37: 0 | M37: 0 | N37: 0 | O37: 0 | P37: 0 | Q37: 95.646 | R37: 0
C38: Large Business - LVMS 6.0+ GWh | D38: JEN | E38: $nominal | F38: A37M | G38: 3203.424 | H38: 0 | I38: 1.179 | J38: 0.404 | K38: 0 | L38: 0 | M38: 0 | N38: 0 | O38: 0 | P38: 0 | Q38: 68.035 | R38: 0
C40: Large business - high voltage
C41: Large Business - HV | D41: JEN | E41: $nominal | F41: A400 | G41: 3425.701 | H41: 0 | I41: 0.789 | J41: 0.184 | K41: 0 | L41: 0 | M41: 0 | N41: 0 | O41: 0 | P41: 0 | Q41: 79.183 | R41: 0
B44: Input | Advanced Metering Infrastructure
C46: Meter provision charge | F46: 2015
C48: Single phase single element meter | F48: 226.32
C49: Single phase single element meter with contactor | F49: 226.32
C50: Three phase direct connected meter | F50: 278.12
C51: Three phase Current transformer connected meter | F51: 308.66
B54: End

Sheet Input|2016 proposed tariffs
C1: =Index!$C$1 -> JEN tariffs and customer outcomes
C2: =Index!$C$22 -> Input|2016 proposed tariffs
D4: Source | E4: Basis | F4: Tariff code
B6: Copyright Jemena Limited. All rights reserved. Jemena is not liable for any loss caused by reliance on this document.
B8: Input | Distribution services tariffs
C11: Tariff component | G11: Fixed (Standing charge) | H11: Unit rate | I11: Peak | J11: Off peak | K11: Summer peak | L11: Summer shoulder | M11: Summer off peak | N11: Non-summer peak | O11: Non-summer shoulder | P11: Non-summer off peak | Q11: Demand | R11: Demand
C12: Unit | G12: $ per customer pa | H12: c/kWh | I12: c/kWh | J12: c/kWh | K12: c/kWh | L12: c/kWh | M12: c/kWh | N12: c/kWh | O12: c/kWh | P12: c/kWh | Q12: $/kW | R12: $/kVA
C14: Residential
C15: Residential - General Purpose | D15: JEN | E15: $nominal | F15: A100 | G15: 26.701 | H15: 8.461 | I15: 0 | J15: 0 | K15: 0 | L15: 0 | M15: 0 | N15: 0 | O15: 0 | P15: 0 | Q15: 0 | R15: 0
C16: Residential - Flexible | D16: JEN | E16: $nominal | F16: A10X | G16: 26.701 | H16: 0 | I16: 14.333 | J16: 4.302 | K16: 14.333 | L16: 9.093 | M16: 4.302 | N16: 14.333 | O16: 9.093 | P16: 4.302 | Q16: 0 | R16: 0
C17: Residential - Time of Use Interval Meter | D17: JEN | E17: $nominal | F17: A10I | G17: 26.701 | H17: 0 | I17: 13.726 | J17: 2.146 | K17: 0 | L17: 0 | M17: 0 | N17: 0 | O17: 0 | P17: 0 | Q17: 0 | R17: 0
C18: Residential - TOU | D18: JEN | E18: $nominal | F18: A140 | G18: 47.018 | H18: 0 | I18: 9.711 | J18: 1.762 | K18: 0 | L18: 0 | M18: 0 | N18: 0 | O18: 0 | P18: 0 | Q18: 0 | R18: 0
C19: Residential - Off Peak Only | D19: JEN | E19: $nominal | F19: A180 | G19: 0 | H19: 0 | I19: 0 | J19: 1.771 | K19: 0 | L19: 0 | M19: 0 | N19: 0 | O19: 0 | P19: 0 | Q19: 0 | R19: 0
C21: Small business
C22: Small Business - General Purpose | D22: JEN | E22: $nominal | F22: A200 | G22: 70.503 | H22: 0 | I22: 9.646 | J22: 0 | K22: 0 | L22: 0 | M22: 0 | N22: 0 | O22: 0 | P22: 0 | Q22: 0 | R22: 0
C23: Small Business - TOU Weekdays | D23: JEN | E23: $nominal | F23: A210 | G23: 101.63 | H23: 0 | I23: 11.388 | J23: 1.907 | K23: 0 | L23: 0 | M23: 0 | N23: 0 | O23: 0 | P23: 0 | Q23: 0 | R23: 0
C24: Small Business - TOU Weekdays Demand | D24: JEN | E24: $nominal | F24: A230 | G24: 133.678 | H24: 0 | I24: 7.015 | J24: 2.228 | K24: 0 | L24: 0 | M24: 0 | N24: 0 | O24: 0 | P24: 0 | Q24: 67.597 | R24: 0
C25: Small Business - TOU Extended | D25: JEN | E25: $nominal | F25: A250 | G25: 101.63 | H25: 0 | I25: 10.03 | J25: 2.09 | K25: 0 | L25: 0 | M25: 0 | N25: 0 | O25: 0 | P25: 0 | Q25: 0 | R25: 0
C26: Small Business - TOU Extended Demand | D26: JEN | E26: $nominal | F26: A270 | G26: 133.678 | H26: 0 | I26: 5.247 | J26: 2.397 | K26: 0 | L26: 0 | M26: 0 | N26: 0 | O26: 0 | P26: 0 | Q26: 67.597 | R26: 0
C27: Small Business - Unmetered Supply | D27: JEN | E27: $nominal | F27: A290 | G27: 0 | H27: 0 | I27: 10.724 | J27: 1.885 | K27: 0 | L27: 0 | M27: 0 | N27: 0 | O27: 0 | P27: 0 | Q27: 0 | R27: 0
C29: Large business - low voltage
C30: Large Business - LV 0.4 - 0.8 GWh | D30: JEN | E30: $nominal | F30: A300 | G30: 2009.713 | H30: 0 | I30: 2.11 | J30: 0.684 | K30: 0 | L30: 0 | M30: 0 | N30: 0 | O30: 0 | P30: 0 | Q30: 110.365 | R30: 0
C31: Large Business – LVEN Annual Consumption <= 0.8 GWh | D31: JEN | E31: $nominal | F31: A30E | G31: 2009.713 | H31: 0 | I31: 2.13 | J31: 0.684 | K31: 0 | L31: 0 | M31: 0 | N31: 0 | O31: 0 | P31: 0 | Q31: 114.599 | R31: 0
C32: Large Business - LV 0.8+ - 2.2 GWh | D32: JEN | E32: $nominal | F32: A320 | G32: 3308.939 | H32: 0 | I32: 1.405 | J32: 0.661 | K32: 0 | L32: 0 | M32: 0 | N32: 0 | O32: 0 | P32: 0 | Q32: 102.015 | R32: 0
C33: Large Business - LVEN 0.8+ - 2.2 GWh | D33: JEN | E33: $nominal | F33: A32E | G33: 3308.939 | H33: 0 | I33: 1.404 | J33: 0.661 | K33: 0 | L33: 0 | M33: 0 | N33: 0 | O33: 0 | P33: 0 | Q33: 103.285 | R33: 0
C34: Large Business - LV 2.2+ - 6.0 GWh | D34: JEN | E34: $nominal | F34: A340 | G34: 5054.764 | H34: 0 | I34: 1.287 | J34: 0.492 | K34: 0 | L34: 0 | M34: 0 | N34: 0 | O34: 0 | P34: 0 | Q34: 100.913 | R34: 0
C35: Large Business - LVEN 2.2+ GWh | D35: JEN | E35: $nominal | F35: A34E | G35: 5054.764 | H35: 0 | I35: 1.287 | J35: 0.492 | K35: 0 | L35: 0 | M35: 0 | N35: 0 | O35: 0 | P35: 0 | Q35: 101.048 | R35: 0
C36: Large Business - LVMS 2.2+ - 6.0 GWh | D36: JEN | E36: $nominal | F36: A34M | G36: 2527.37 | H36: 0 | I36: 1.273 | J36: 0.492 | K36: 0 | L36: 0 | M36: 0 | N36: 0 | O36: 0 | P36: 0 | Q36: 69.912 | R36: 0
C37: Large Business - LV 6.0+ GWh | D37: JEN | E37: $nominal | F37: A370 | G37: 6577.284 | H37: 0 | I37: 1.249 | J37: 0.426 | K37: 0 | L37: 0 | M37: 0 | N37: 0 | O37: 0 | P37: 0 | Q37: 97.081 | R37: 0
C38: Large Business - LVMS 6.0+ GWh | D38: JEN | E38: $nominal | F38: A37M | G38: 3288.635 | H38: 0 | I38: 1.249 | J38: 0.426 | K38: 0 | L38: 0 | M38: 0 | N38: 0 | O38: 0 | P38: 0 | Q38: 69.056 | R38: 0
C40: Large business - high voltage
C41: Large Business - HV | D41: JEN | E41: $nominal | F41: A400 | G41: 3529.842 | H41: 0 | I41: 0.838 | J41: 0.195 | K41: 0 | L41: 0 | M41: 0 | N41: 0 | O41: 0 | P41: 0 | Q41: 80.569 | R41: 0
B44: Input | Advanced Metering Infrastructure
C46: Meter provision charge | F46: 2016
C48: Single phase single element meter | F48: 94.2187056
C49: Single phase single element meter with contactor | F49: 94.2187056
C50: Three phase direct connected meter | F50: 115.7834323
C51: Three phase Current transformer connected meter | F51: 128.4974623
B55: End

Sheet Input|2017 indicative tariffs
C1: =Index!$C$1 -> JEN tariffs and customer outcomes
C2: =Index!$C$23 -> Input|2017 indicative tariffs
D4: Source | E4: Basis | F4: Tariff code
B6: Copyright Jemena Limited. All rights reserved. Jemena is not liable for any loss caused by reliance on this document.
B8: Input | Distribution services tariffs
C11: Tariff component | G11: Fixed (Standing charge) | H11: Unit rate | I11: Peak | J11: Off peak | K11: Summer peak | L11: Summer shoulder | M11: Summer off peak | N11: Non-summer peak | O11: Non-summer shoulder | P11: Non-summer off peak | Q11: Demand | R11: Demand
C12: Unit | G12: $ per customer pa | H12: c/kWh | I12: c/kWh | J12: c/kWh | K12: c/kWh | L12: c/kWh | M12: c/kWh | N12: c/kWh | O12: c/kWh | P12: c/kWh | Q12: $/kW | R12: $/kVA
C14: Residential
C15: Residential - General Purpose | D15: JEN | E15: $nominal | F15: A100 | G15: 27.357 | H15: 8.675 | I15: 0 | J15: 0 | K15: 0 | L15: 0 | M15: 0 | N15: 0 | O15: 0 | P15: 0 | Q15: 0 | R15: 0
C16: Residential - Flexible | D16: JEN | E16: $nominal | F16: A10X | G16: 27.357 | H16: 0 | I16: 14.695 | J16: 4.411 | K16: 14.695 | L16: 9.323 | M16: 4.411 | N16: 14.695 | O16: 9.323 | P16: 4.411 | Q16: 0 | R16: 0
C17: Residential - Time of Use Interval Meter | D17: JEN | E17: $nominal | F17: A10I | G17: 27.357 | H17: 0 | I17: 14.072 | J17: 2.2 | K17: 0 | L17: 0 | M17: 0 | N17: 0 | O17: 0 | P17: 0 | Q17: 0 | R17: 0
C18: Residential - TOU | D18: JEN | E18: $nominal | F18: A140 | G18: 48.199 | H18: 0 | I18: 9.956 | J18: 1.806 | K18: 0 | L18: 0 | M18: 0 | N18: 0 | O18: 0 | P18: 0 | Q18: 0 | R18: 0
C19: Residential - Off Peak Only | D19: JEN | E19: $nominal | F19: A180 | G19: 0 | H19: 0 | I19: 0 | J19: 1.816 | K19: 0 | L19: 0 | M19: 0 | N19: 0 | O19: 0 | P19: 0 | Q19: 0 | R19: 0
C21: Small business
C22: Small Business - General Purpose | D22: JEN | E22: $nominal | F22: A200 | G22: 72.396 | H22: 0 | I22: 9.905 | J22: 0 | K22: 0 | L22: 0 | M22: 0 | N22: 0 | O22: 0 | P22: 0 | Q22: 0 | R22: 0
C23: Small Business - TOU Weekdays | D23: JEN | E23: $nominal | F23: A210 | G23: 104.359 | H23: 0 | I23: 11.694 | J23: 1.955 | K23: 0 | L23: 0 | M23: 0 | N23: 0 | O23: 0 | P23: 0 | Q23: 0 | R23: 0
C24: Small Business - TOU Weekdays Demand | D24: JEN | E24: $nominal | F24: A230 | G24: 137.267 | H24: 0 | I24: 7.204 | J24: 2.284 | K24: 0 | L24: 0 | M24: 0 | N24: 0 | O24: 0 | P24: 0 | Q24: 67.597 | R24: 0
C25: Small Business - TOU Extended | D25: JEN | E25: $nominal | F25: A250 | G25: 104.359 | H25: 0 | I25: 10.3 | J25: 2.143 | K25: 0 | L25: 0 | M25: 0 | N25: 0 | O25: 0 | P25: 0 | Q25: 0 | R25: 0
C26: Small Business - TOU Extended Demand | D26: JEN | E26: $nominal | F26: A270 | G26: 137.267 | H26: 0 | I26: 5.388 | J26: 2.457 | K26: 0 | L26: 0 | M26: 0 | N26: 0 | O26: 0 | P26: 0 | Q26: 67.597 | R26: 0
C27: Small Business - Unmetered Supply | D27: JEN | E27: $nominal | F27: A290 | G27: 0 | H27: 0 | I27: 11.012 | J27: 1.933 | K27: 0 | L27: 0 | M27: 0 | N27: 0 | O27: 0 | P27: 0 | Q27: 0 | R27: 0
C29: Large business - low voltage
C30: Large Business - LV 0.4 - 0.8 GWh | D30: JEN | E30: $nominal | F30: A300 | G30: 2060.257 | H30: 0 | I30: 2.232 | J30: 0.722 | K30: 0 | L30: 0 | M30: 0 | N30: 0 | O30: 0 | P30: 0 | R30: 97.085
C31: Large Business – LVEN Annual Consumption <= 0.8 GWh | D31: JEN | E31: $nominal | F31: A30E | G31: 2060.257 | H31: 0 | I31: 2.254 | J31: 0.722 | K31: 0 | L31: 0 | M31: 0 | N31: 0 | O31: 0 | P31: 0 | R31: 96.582
C32: Large Business - LV 0.8+ - 2.2 GWh | D32: JEN | E32: $nominal | F32: A320 | G32: 3392.159 | H32: 0 | I32: 1.486 | J32: 0.698 | K32: 0 | L32: 0 | M32: 0 | N32: 0 | O32: 0 | P32: 0 | R32: 90.885
C33: Large Business - LVEN 0.8+ - 2.2 GWh | D33: JEN | E33: $nominal | F33: A32E | G33: 3392.159 | H33: 0 | I33: 1.485 | J33: 0.698 | K33: 0 | L33: 0 | M33: 0 | N33: 0 | O33: 0 | P33: 0 | R33: 100.495
C34: Large Business - LV 2.2+ - 6.0 GWh | D34: JEN | E34: $nominal | F34: A340 | G34: 5181.891 | H34: 0 | I34: 1.362 | J34: 0.519 | K34: 0 | L34: 0 | M34: 0 | N34: 0 | O34: 0 | P34: 0 | R34: 90.229
C35: Large Business - LVEN 2.2+ GWh | D35: JEN | E35: $nominal | F35: A34E | G35: 5181.891 | H35: 0 | I35: 1.362 | J35: 0.519 | K35: 0 | L35: 0 | M35: 0 | N35: 0 | O35: 0 | P35: 0 | R35: 87.812
C36: Large Business - LVMS 2.2+ - 6.0 GWh | D36: JEN | E36: $nominal | F36: A34M | G36: 2590.933 | H36: 0 | I36: 1.347 | J36: 0.519 | K36: 0 | L36: 0 | M36: 0 | N36: 0 | O36: 0 | P36: 0 | R36: 68.227
C37: Large Business - LV 6.0+ GWh | D37: JEN | E37: $nominal | F37: A370 | G37: 6742.703 | H37: 0 | I37: 1.321 | J37: 0.45 | K37: 0 | L37: 0 | M37: 0 | N37: 0 | O37: 0 | P37: 0 | R37: 85.127
C38: Large Business - LVMS 6.0+ GWh | D38: JEN | E38: $nominal | F38: A37M | G38: 3371.344 | H38: 0 | I38: 1.321 | J38: 0.45 | K38: 0 | L38: 0 | M38: 0 | N38: 0 | O38: 0 | P38: 0 | R38: 61.326
C40: Large business - high voltage
C41: Large Business - HV | D41: JEN | E41: $nominal | F41: A400 | G41: 3618.088 | H41: 0 | I41: 0.89 | J41: 0.206 | K41: 0 | L41: 0 | M41: 0 | N41: 0 | O41: 0 | P41: 0 | R41: 74.18
B44: Input | Advanced Metering Infrastructure
C46: Meter provision charge | F46: 2017
C48: Single phase single element meter | F48: 96.59673057
C49: Single phase single element meter with contactor | F49: 96.59673057
C50: Three phase direct connected meter | F50: 118.7057384
C51: Three phase Current transformer connected meter | F51: 131.740663
B54: End

Sheet Input|2018 indicative tariffs
C1: =Index!$C$1 -> JEN tariffs and customer outcomes
C2: =Index!$C$24 -> Input|2018 indicative tariffs
D4: Source | E4: Basis | F4: Tariff code
B6: Copyright Jemena Limited. All rights reserved. Jemena is not liable for any loss caused by reliance on this document.
B8: Input | Distribution services tariffs
C11: Tariff component | G11: Fixed (Standing charge) | H11: Unit rate | I11: Peak | J11: Off peak | K11: Summer peak | L11: Summer shoulder | M11: Summer off peak | N11: Non-summer peak | O11: Non-summer shoulder | P11: Non-summer off peak | Q11: Demand | R11: Demand
C12: Unit | G12: $ per customer pa | H12: c/kWh | I12: c/kWh | J12: c/kWh | K12: c/kWh | L12: c/kWh | M12: c/kWh | N12: c/kWh | O12: c/kWh | P12: c/kWh | Q12: $/kW | R12: $/kVA
C14: Residential
C15: Residential - General Purpose | D15: JEN | E15: $nominal | F15: A100 | G15: 21.885 | H15: 6.83 | I15: 0 | J15: 0 | K15: 0 | L15: 0 | M15: 0 | N15: 0 | O15: 0 | P15: 0 | Q15: 29.043 | R15: 0
C16: Residential - Flexible | D16: JEN | E16: $nominal | F16: A10X | G16: 21.885 | H16: 0 | I16: 10.102 | J16: 2.714 | K16: 10.102 | L16: 6.83 | M16: 2.714 | N16: 10.102 | O16: 6.83 | P16: 2.714 | Q16: 29.043 | R16: 0
C17: Residential - Time of Use Interval Meter | D17: JEN | E17: $nominal | F17: A10I | G17: 21.885 | H17: 0 | I17: 10.102 | J17: 1.912 | K17: 0 | L17: 0 | M17: 0 | N17: 0 | O17: 0 | P17: 0 | Q17: 29.043 | R17: 0
C18: Residential - TOU | D18: JEN | E18: $nominal | F18: A140 | G18: 33.706 | H18: 0 | I18: 8.102 | J18: 1.726 | K18: 0 | L18: 0 | M18: 0 | N18: 0 | O18: 0 | P18: 0 | Q18: 29.043 | R18: 0
C19: Residential - Off Peak Only | D19: JEN | E19: $nominal | F19: A180 | G19: 0 | H19: 0 | I19: 0 | J19: 1.826 | K19: 0 | L19: 0 | M19: 0 | N19: 0 | O19: 0 | P19: 0 | Q19: 0 | R19: 0
C21: Small business
C22: Small Business - General Purpose | D22: JEN | E22: $nominal | F22: A200 | G22: 71.85 | H22: 0 | I22: 3.981 | J22: 0 | K22: 0 | L22: 0 | M22: 0 | N22: 0 | O22: 0 | P22: 0 | Q22: 18.724 | R22: 0
C23: Small Business - TOU Weekdays | D23: JEN | E23: $nominal | F23: A210 | G23: 71.85 | H23: 0 | I23: 7.938 | J23: 1.839 | K23: 0 | L23: 0 | M23: 0 | N23: 0 | O23: 0 | P23: 0 | Q23: 18.724 | R23: 0
C24: Small Business - TOU Weekdays Demand | D24: JEN | E24: $nominal | F24: A230 | G24: 71.85 | H24: 0 | I24: 5.585 | J24: 1.948 | K24: 0 | L24: 0 | M24: 0 | N24: 0 | O24: 0 | P24: 0 | Q24: 67.597 | R24: 0
C25: Small Business - TOU Extended | D25: JEN | E25: $nominal | F25: A250 | G25: 71.85 | H25: 0 | I25: 7.13 | J25: 1.963 | K25: 0 | L25: 0 | M25: 0 | N25: 0 | O25: 0 | P25: 0 | Q25: 18.724 | R25: 0
C26: Small Business - TOU Extended Demand | D26: JEN | E26: $nominal | F26: A270 | G26: 71.85 | H26: 0 | I26: 3.918 | J26: 2.02 | K26: 0 | L26: 0 | M26: 0 | N26: 0 | O26: 0 | P26: 0 | Q26: 67.597 | R26: 0
C27: Small Business - Unmetered Supply | D27: JEN | E27: $nominal | F27: A290 | G27: 0 | H27: 0 | I27: 11.05 | J27: 1.944 | K27: 0 | L27: 0 | M27: 0 | N27: 0 | O27: 0 | P27: 0 | Q27: 0 | R27: 0
C29: Large business - low voltage
C30: Large Business - LV 0.4 - 0.8 GWh | D30: JEN | E30: $nominal | F30: A300 | G30: 2060.257 | H30: 0 | I30: 2.299 | J30: 0.732 | K30: 0 | L30: 0 | M30: 0 | N30: 0 | O30: 0 | P30: 0 | R30: 97.085
C31: Large Business – LVEN Annual Consumption <= 0.8 GWh | D31: JEN | E31: $nominal | F31: A30E | G31: 2060.257 | H31: 0 | I31: 2.322 | J31: 0.732 | K31: 0 | L31: 0 | M31: 0 | N31: 0 | O31: 0 | P31: 0 | R31: 96.582
C32: Large Business - LV 0.8+ - 2.2 GWh | D32: JEN | E32: $nominal | F32: A320 | G32: 3392.159 | H32: 0 | I32: 1.531 | J32: 0.707 | K32: 0 | L32: 0 | M32: 0 | N32: 0 | O32: 0 | P32: 0 | R32: 90.885
C33: Large Business - LVEN 0.8+ - 2.2 GWh | D33: JEN | E33: $nominal | F33: A32E | G33: 3392.159 | H33: 0 | I33: 1.53 | J33: 0.707 | K33: 0 | L33: 0 | M33: 0 | N33: 0 | O33: 0 | P33: 0 | R33: 100.495
C34: Large Business - LV 2.2+ - 6.0 GWh | D34: JEN | E34: $nominal | F34: A340 | G34: 5181.891 | H34: 0 | I34: 1.403 | J34: 0.526 | K34: 0 | L34: 0 | M34: 0 | N34: 0 | O34: 0 | P34: 0 | R34: 90.229
C35: Large Business - LVEN 2.2+ GWh | D35: JEN | E35: $nominal | F35: A34E | G35: 5181.891 | H35: 0 | I35: 1.403 | J35: 0.526 | K35: 0 | L35: 0 | M35: 0 | N35: 0 | O35: 0 | P35: 0 | R35: 87.812
C36: Large Business - LVMS 2.2+ - 6.0 GWh | D36: JEN | E36: $nominal | F36: A34M | G36: 2590.933 | H36: 0 | I36: 1.387 | J36: 0.526 | K36: 0 | L36: 0 | M36: 0 | N36: 0 | O36: 0 | P36: 0 | R36: 68.227
C37: Large Business - LV 6.0+ GWh | D37: JEN | E37: $nominal | F37: A370 | G37: 6742.703 | H37: 0 | I37: 1.361 | J37: 0.456 | K37: 0 | L37: 0 | M37: 0 | N37: 0 | O37: 0 | P37: 0 | R37: 85.127
C38: Large Business - LVMS 6.0+ GWh | D38: JEN | E38: $nominal | F38: A37M | G38: 3371.344 | H38: 0 | I38: 1.361 | J38: 0.456 | K38: 0 | L38: 0 | M38: 0 | N38: 0 | O38: 0 | P38: 0 | R38: 61.326
C40: Large business - high voltage
C41: Large Business - HV | D41: JEN | E41: $nominal | F41: A400 | G41: 3618.088 | H41: 0 | I41: 0.924 | J41: 0.209 | K41: 0 | L41: 0 | M41: 0 | N41: 0 | O41: 0 | P41: 0 | R41: 74.18
B44: Input | Advanced Metering Infrastructure
C46: Meter provision charge | F46: 2018
C48: Single phase single element meter | F48: 99.0347755
C49: Single phase single element meter with contactor | F49: 99.0347755
C50: Three phase direct connected meter | F50: 121.7018017
C51: Three phase Current transformer connected meter | F51: 135.0657202
B54: End

Sheet Input|2019 indicative tariffs
C1: =Index!$C$1 -> JEN tariffs and customer outcomes
C2: =Index!$C$25 -> Input|2019 indicative tariffs
D4: Source | E4: Basis | F4: Tariff code
B6: Copyright Jemena Limited. All rights reserved. Jemena is not liable for any loss caused by reliance on this document.
B8: Input | Distribution services tariffs
C11: Tariff component | G11: Fixed (Standing charge) | H11: Unit rate | I11: Peak | J11: Off peak | K11: Summer peak | L11: Summer shoulder | M11: Summer off peak | N11: Non-summer peak | O11: Non-summer shoulder | P11: Non-summer off peak | Q11: Demand | R11: Demand
C12: Unit | G12: $ per customer pa | H12: c/kWh | I12: c/kWh | J12: c/kWh | K12: c/kWh | L12: c/kWh | M12: c/kWh | N12: c/kWh | O12: c/kWh | P12: c/kWh | Q12: $/kW | R12: $/kVA
C14: Residential
C15: Residential - General Purpose | D15: JEN | E15: $nominal | F15: A100 | G15: 21.031 | H15: 6.609 | I15: 0 | J15: 0 | K15: 0 | L15: 0 | M15: 0 | N15: 0 | O15: 0 | P15: 0 | Q15: 35.731 | R15: 0
C16: Residential - Flexible | D16: JEN | E16: $nominal | F16: A10X | G16: 21.031 | H16: 0 | I16: 9.776 | J16: 2.714 | K16: 9.776 | L16: 6.83 | M16: 2.714 | N16: 9.776 | O16: 6.83 | P16: 2.714 | Q16: 35.731 | R16: 0
C17: Residential - Time of Use Interval Meter | D17: JEN | E17: $nominal | F17: A10I | G17: 21.031 | H17: 0 | I17: 9.776 | J17: 1.912 | K17: 0 | L17: 0 | M17: 0 | N17: 0 | O17: 0 | P17: 0 | Q17: 35.731 | R17: 0
C18: Residential - TOU | D18: JEN | E18: $nominal | F18: A140 | G18: 32.307 | H18: 0 | I18: 7.84 | J18: 1.726 | K18: 0 | L18: 0 | M18: 0 | N18: 0 | O18: 0 | P18: 0 | Q18: 35.731 | R18: 0
C19: Residential - Off Peak Only | D19: JEN | E19: $nominal | F19: A180 | G19: 0 | H19: 0 | I19: 0 | J19: 1.826 | K19: 0 | L19: 0 | M19: 0 | N19: 0 | O19: 0 | P19: 0 | Q19: 0 | R19: 0
C21: Small business
C22: Small Business - General Purpose | D22: JEN | E22: $nominal | F22: A200 | G22: 67.898 | H22: 0 | I22: 3.623 | J22: 0 | K22: 0 | L22: 0 | M22: 0 | N22: 0 | O22: 0 | P22: 0 | Q22: 23.036 | R22: 0
C23: Small Business - TOU Weekdays | D23: JEN | E23: $nominal | F23: A210 | G23: 67.898 | H23: 0 | I23: 7.144 | J23: 1.679 | K23: 0 | L23: 0 | M23: 0 | N23: 0 | O23: 0 | P23: 0 | Q23: 23.036 | R23: 0
C24: Small Business - TOU Weekdays Demand | D24: JEN | E24: $nominal | F24: A230 | G24: 67.898 | H24: 0 | I24: 4.943 | J24: 1.779 | K24: 0 | L24: 0 | M24: 0 | N24: 0 | O24: 0 | P24: 0 | Q24: 67.597 | R24: 0
C25: Small Business - TOU Extended | D25: JEN | E25: $nominal | F25: A250 | G25: 67.898 | H25: 0 | I25: 6.417 | J25: 1.792 | K25: 0 | L25: 0 | M25: 0 | N25: 0 | O25: 0 | P25: 0 | Q25: 23.036 | R25: 0
C26: Small Business - TOU Extended Demand | D26: JEN | E26: $nominal | F26: A270 | G26: 67.898 | H26: 0 | I26: 3.467 | J26: 1.844 | K26: 0 | L26: 0 | M26: 0 | N26: 0 | O26: 0 | P26: 0 | Q26: 67.597 | R26: 0
C27: Small Business - Unmetered Supply | D27: JEN | E27: $nominal | F27: A290 | G27: 0 | H27: 0 | I27: 11.271 | J27: 1.983 | K27: 0 | L27: 0 | M27: 0 | N27: 0 | O27: 0 | P27: 0 | Q27: 0 | R27: 0
C29: Large business - low voltage
C30: Large Business - LV 0.4 - 0.8 GWh | D30: JEN | E30: $nominal | F30: A300 | G30: 2112.794 | H30: 0 | I30: 2.448 | J30: 0.767 | K30: 0 | L30: 0 | M30: 0 | N30: 0 | O30: 0 | P30: 0 | R30: 98.347
C31: Large Business – LVEN Annual Consumption <= 0.8 GWh | D31: JEN | E31: $nominal | F31: A30E | G31: 2112.794 | H31: 0 | I31: 2.473 | J31: 0.767 | K31: 0 | L31: 0 | M31: 0 | N31: 0 | O31: 0 | P31: 0 | R31: 97.838
C32: Large Business - LV 0.8+ - 2.2 GWh | D32: JEN | E32: $nominal | F32: A320 | G32: 3478.998 | H32: 0 | I32: 1.631 | J32: 0.741 | K32: 0 | L32: 0 | M32: 0 | N32: 0 | O32: 0 | P32: 0 | R32: 92.067
C33: Large Business - LVEN 0.8+ - 2.2 GWh | D33: JEN | E33: $nominal | F33: A32E | G33: 3478.998 | H33: 0 | I33: 1.629 | J33: 0.741 | K33: 0 | L33: 0 | M33: 0 | N33: 0 | O33: 0 | P33: 0 | R33: 101.801
C34: Large Business - LV 2.2+ - 6.0 GWh | D34: JEN | E34: $nominal | F34: A340 | G34: 5314.547 | H34: 0 | I34: 1.494 | J34: 0.551 | K34: 0 | L34: 0 | M34: 0 | N34: 0 | O34: 0 | P34: 0 | R34: 91.402
C35: Large Business - LVEN 2.2+ GWh | D35: JEN | E35: $nominal | F35: A34E | G35: 5314.547 | H35: 0 | I35: 1.494 | J35: 0.551 | K35: 0 | L35: 0 | M35: 0 | N35: 0 | O35: 0 | P35: 0 | R35: 88.954
C36: Large Business - LVMS 2.2+ - 6.0 GWh | D36: JEN | E36: $nominal | F36: A34M | G36: 2657.261 | H36: 0 | I36: 1.477 | J36: 0.551 | K36: 0 | L36: 0 | M36: 0 | N36: 0 | O36: 0 | P36: 0 | R36: 69.114
C37: Large Business - LV 6.0+ GWh | D37: JEN | E37: $nominal | F37: A370 | G37: 6915.316 | H37: 0 | I37: 1.449 | J37: 0.478 | K37: 0 | L37: 0 | M37: 0 | N37: 0 | O37: 0 | P37: 0 | R37: 86.234
C38: Large Business - LVMS 6.0+ GWh | D38: JEN | E38: $nominal | F38: A37M | G38: 3457.65 | H38: 0 | I38: 1.449 | J38: 0.478 | K38: 0 | L38: 0 | M38: 0 | N38: 0 | O38: 0 | P38: 0 | R38: 62.123
C40: Large business - high voltage
C41: Large Business - HV | D41: JEN | E41: $nominal | F41: A400 | G41: 3711.796 | H41: 0 | I41: 0.983 | J41: 0.219 | K41: 0 | L41: 0 | M41: 0 | N41: 0 | O41: 0 | P41: 0 | R41: 75.441
B44: Input | Advanced Metering Infrastructure
C46: Meter provision charge | F46: 2019
C48: Single phase single element meter | F48: 101.5343553
C49: Single phase single element meter with contactor | F49: 101.5343553
C50: Three phase direct connected meter | F50: 124.7734839
C51: Three phase Current transformer connected meter | F51: 138.4747
B54: End

Sheet Input|2020 indicative tariffs
C1: =Index!$C$1 -> JEN tariffs and customer outcomes
C2: =Index!$C$26 -> Input|2020 indicative tariffs
D4: Source | E4: Basis | F4: Tariff code
B6: Copyright Jemena Limited. All rights reserved. Jemena is not liable for any loss caused by reliance on this document.
B8: Input | Distribution services tariffs
C11: Tariff component | G11: Fixed (Standing charge) | H11: Unit rate | I11: Peak | J11: Off peak | K11: Summer peak | L11: Summer shoulder | M11: Summer off peak | N11: Non-summer peak | O11: Non-summer shoulder | P11: Non-summer off peak | Q11: Demand | R11: Demand
C12: Unit | G12: $ per customer pa | H12: c/kWh | I12: c/kWh | J12: c/kWh | K12: c/kWh | L12: c/kWh | M12: c/kWh | N12: c/kWh | O12: c/kWh | P12: c/kWh | Q12: $/kW | R12: $/kVA
C14: Residential
C15: Residential - General Purpose | D15: JEN | E15: $nominal | F15: A100 | G15: 20.19 | H15: 6.371 | I15: 0 | J15: 0 | K15: 0 | L15: 0 | M15: 0 | N15: 0 | O15: 0 | P15: 0 | Q15: 42.738 | R15: 0
C16: Residential - Flexible | D16: JEN | E16: $nominal | F16: A10X | G16: 20.19 | H16: 0 | I16: 9.424 | J16: 2.694 | K16: 9.424 | L16: 6.68 | M16: 2.694 | N16: 9.424 | O16: 6.68 | P16: 2.694 | Q16: 42.738 | R16: 0
C17: Residential - Time of Use Interval Meter | D17: JEN | E17: $nominal | F17: A10I | G17: 20.19 | H17: 0 | I17: 9.424 | J17: 1.898 | K17: 0 | L17: 0 | M17: 0 | N17: 0 | O17: 0 | P17: 0 | Q17: 42.738 | R17: 0
C18: Residential - TOU | D18: JEN | E18: $nominal | F18: A140 | G18: 31.015 | H18: 0 | I18: 7.558 | J18: 1.713 | K18: 0 | L18: 0 | M18: 0 | N18: 0 | O18: 0 | P18: 0 | Q18: 42.738 | R18: 0
C19: Residential - Off Peak Only | D19: JEN | E19: $nominal | F19: A180 | G19: 0 | H19: 0 | I19: 0 | J19: 1.812 | K19: 0 | L19: 0 | M19: 0 | N19: 0 | O19: 0 | P19: 0 | Q19: 0 | R19: 0
C21: Small business
C22: Small Business - General Purpose | D22: JEN | E22: $nominal | F22: A200 | G22: 62.989 | H22: 0 | I22: 3.275 | J22: 0 | K22: 0 | L22: 0 | M22: 0 | N22: 0 | O22: 0 | P22: 0 | Q22: 27.554 | R22: 0
C23: Small Business - TOU Weekdays | D23: JEN | E23: $nominal | F23: A210 | G23: 62.989 | H23: 0 | I23: 6.248 | J23: 1.595 | K23: 0 | L23: 0 | M23: 0 | N23: 0 | O23: 0 | P23: 0 | Q23: 27.554 | R23: 0
C24: Small Business - TOU Weekdays Demand | D24: JEN | E24: $nominal | F24: A230 | G24: 62.989 | H24: 0 | I24: 4.226 | J24: 1.69 | K24: 0 | L24: 0 | M24: 0 | N24: 0 | O24: 0 | P24: 0 | Q24: 67.597 | R24: 0
C25: Small Business - TOU Extended | D25: JEN | E25: $nominal | F25: A250 | G25: 62.989 | H25: 0 | I25: 5.612 | J25: 1.702 | K25: 0 | L25: 0 | M25: 0 | N25: 0 | O25: 0 | P25: 0 | Q25: 27.554 | R25: 0
C26: Small Business - TOU Extended Demand | D26: JEN | E26: $nominal | F26: A270 | G26: 62.989 | H26: 0 | I26: 2.964 | J26: 1.752 | K26: 0 | L26: 0 | M26: 0 | N26: 0 | O26: 0 | P26: 0 | Q26: 67.597 | R26: 0
C27: Small Business - Unmetered Supply | D27: JEN | E27: $nominal | F27: A290 | G27: 0 | H27: 0 | I27: 11.555 | J27: 2.033 | K27: 0 | L27: 0 | M27: 0 | N27: 0 | O27: 0 | P27: 0 | Q27: 0 | R27: 0
C29: Large business - low voltage
C30: Large Business - LV 0.4 - 0.8 GWh | D30: JEN | E30: $nominal | F30: A300 | G30: 2165.614 | H30: 0 | I30: 2.592 | J30: 0.797 | K30: 0 | L30: 0 | M30: 0 | N30: 0 | O30: 0 | P30: 0 | R30: 99.812
C31: Large Business – LVEN Annual Consumption <= 0.8 GWh | D31: JEN | E31: $nominal | F31: A30E | G31: 2165.614 | H31: 0 | I31: 2.619 | J31: 0.797 | K31: 0 | L31: 0 | M31: 0 | N31: 0 | O31: 0 | P31: 0 | R31: 99.296
C32: Large Business - LV 0.8+ - 2.2 GWh | D32: JEN | E32: $nominal | F32: A320 | G32: 3565.973 | H32: 0 | I32: 1.727 | J32: 0.77 | K32: 0 | L32: 0 | M32: 0 | N32: 0 | O32: 0 | P32: 0 | R32: 93.439
C33: Large Business - LVEN 0.8+ - 2.2 GWh | D33: JEN | E33: $nominal | F33: A32E | G33: 3565.973 | H33: 0 | I33: 1.725 | J33: 0.77 | K33: 0 | L33: 0 | M33: 0 | N33: 0 | O33: 0 | P33: 0 | R33: 103.318
C34: Large Business - LV 2.2+ - 6.0 GWh | D34: JEN | E34: $nominal | F34: A340 | G34: 5447.411 | H34: 0 | I34: 1.582 | J34: 0.573 | K34: 0 | L34: 0 | M34: 0 | N34: 0 | O34: 0 | P34: 0 | R34: 92.764
C35: Large Business - LVEN 2.2+ GWh | D35: JEN | E35: $nominal | F35: A34E | G35: 5447.411 | H35: 0 | I35: 1.582 | J35: 0.573 | K35: 0 | L35: 0 | M35: 0 | N35: 0 | O35: 0 | P35: 0 | R35: 90.279
C36: Large Business - LVMS 2.2+ - 6.0 GWh | D36: JEN | E36: $nominal | F36: A34M | G36: 2723.693 | H36: 0 | I36: 1.564 | J36: 0.573 | K36: 0 | L36: 0 | M36: 0 | N36: 0 | O36: 0 | P36: 0 | R36: 70.144
C37: Large Business - LV 6.0+ GWh | D37: JEN | E37: $nominal | F37: A370 | G37: 7088.199 | H37: 0 | I37: 1.534 | J37: 0.497 | K37: 0 | L37: 0 | M37: 0 | N37: 0 | O37: 0 | P37: 0 | R37: 87.519
C38: Large Business - LVMS 6.0+ GWh | D38: JEN | E38: $nominal | F38: A37M | G38: 3544.091 | H38: 0 | I38: 1.534 | J38: 0.497 | K38: 0 | L38: 0 | M38: 0 | N38: 0 | O38: 0 | P38: 0 | R38: 63.049
C40: Large business - high voltage
C41: Large Business - HV | D41: JEN | E41: $nominal | F41: A400 | G41: 3789.373 | H41: 0 | I41: 1.044 | J41: 0.228 | K41: 0 | L41: 0 | M41: 0 | N41: 0 | O41: 0 | P41: 0 | R41: 76.75
B44: Input | Advanced Metering Infrastructure
C46: Meter provision charge | F46: 2020
C48: Single phase single element meter | F48: 104.0970229
C49: Single phase single element meter with contactor | F49: 104.0970229
C50: Three phase direct connected meter | F50: 127.9226936
C51: Three phase Current transformer connected meter | F51: 141.9697203
B54: End

Sheet Input|archetype demand
C1: =Index!$C$1 -> JEN tariffs and customer outcomes
C2: =Index!$C$27 -> Input|archetype demand
E4: Source
B6: Copyright Jemena Limited. All rights reserved. Jemena is not liable for any loss caused by reliance on this document.
B8: Input | Customer achetype demand and consumption levels
C10: Tariff component | G10: Annual consumption | H10: Average monthly maximum demand | I10: Peak | J10: Off peak | K10: Shoulder | L10: Demand
C11: Unit | G11: kWh | H11: kW | I11: kWh | J11: kWh | K11: kWh | L11: kVA
C13: Residential - General purpose
C14: Low consumption, Low demand (13.2%) | E14: JEN | G14: 2233 | H14: 2.08
C15: Low consumption, Medium demand (6.8%) | E15: JEN | G15: 2233 | H15: 3.1
C16: Low consumption, High demand (0.03%) | E16: JEN | G16: 2233 | H16: 4.27
C17: Medium consumption, Low demand (6.8%) | E17: JEN | G17: 3775.127 | H17: 2.08
C18: Medium consumption, Medium demand (46.6%) | E18: JEN | G18: 3775.127 | H18: 3.1
C19: Medium consumption, High demand (6.6%) | E19: JEN | G19: 3775.127 | H19: 4.27
C20: High consumption, Low demand (0.1%) | E20: JEN | G20: 5958.0654 | H20: 2.08
C21: High consumption, Medium demand (6.6%) | E21: JEN | G21: 5958.0654 | H21: 3.1
C22: High consumption, High demand (13.4%) | E22: JEN | G22: 5958.0654 | H22: 4.27
C24: Small business - General purpose
C25: Small | E25: JEN | G25: 6000 | H25: 8
C26: Medium | E26: JEN | G26: 11000 | H26: 20
C27: Large | E27: JEN | G27: 21000 | H27: 50
C29: Large business -LV
C30: A300 Large business LV 0.4 - 0.8 GWh | E30: JEN | G30: 368000 | H30: 169.65 | I30: 228160 | J30: 139840 | L30: 195
C32: Large business - HV
C33: A400 Large Business HV | E33: JEN | G33: 6745000 | H33: 2297.7 | I33: 3642300 | J33: 3102700 | L33: 2553
B36: End

Sheet Calc|Customer tariff
C1: =Index!$C$1 -> JEN tariffs and customer outcomes | D1: =Index!$C$1 -> JEN tariffs and customer outcomes | G1: =Index!$C$1 -> JEN tariffs and customer outcomes
C2: =Index!$C$28 -> Calc|Customer tariff | D2: =Index!$C$27 -> Input|archetype demand | G2: =Index!$C$27 -> Input|archetype demand
D4: Source | E4: Unit | F4: Basis | G4: Tariff
B6: Copyright Jemena Limited. All rights reserved. Jemena is not liable for any loss caused by reliance on this document.
B8: Revenue
C10: Residential - General purpose
C11: 2015 | D11: Source | E11: Unit | F11: Basis | G11: Tariff | H11: Fixed | I11: Consumption | J11: Demand | K11: Total
C12: Archetype
C13: Low Consumption, Low Demand | D13: JEN | E13: $ per annum | F13: $Nominal | G13: Residential - General purpose | H13: ='Input|2015 tariffs'!$G$15 -> 26.033 | I13: ='Input|archetype demand'!G14*'Input|2015 tariffs'!$H$15/100 -> 184.28949 | J13: ='Input|archetype demand'!H14*'Input|2015 tariffs'!$Q$15 -> 0 | K13: =SUM(H13:J13) -> 210.32249
C14: Low Consumption, Medium Demand | D14: JEN | E14: $ per annum | F14: $Nominal | G14: Residential - General purpose | H14: ='Input|2015 tariffs'!$G$15 -> 26.033 | I14: ='Input|archetype demand'!G15*'Input|2015 tariffs'!$H$15/100 -> 184.28949 | J14: ='Input|archetype demand'!H15*'Input|2015 tariffs'!$Q$15 -> 0 | K14: =SUM(H14:J14) -> 210.32249
C15: Low consumption, High demand | D15: JEN | E15: $ per annum | F15: $Nominal | G15: Residential - General purpose | H15: ='Input|2015 tariffs'!$G$15 -> 26.033 | I15: ='Input|archetype demand'!G16*'Input|2015 tariffs'!$H$15/100 -> 184.28949 | J15: ='Input|archetype demand'!H16*'Input|2015 tariffs'!$Q$15 -> 0 | K15: =SUM(H15:J15) -> 210.32249
C16: Medium consumption, Low demand | D16: JEN | E16: $ per annum | F16: $Nominal | G16: Residential - General purpose | H16: ='Input|2015 tariffs'!$G$15 -> 26.033 | I16: ='Input|archetype demand'!G17*'Input|2015 tariffs'!$H$15/100 -> 311.5612313 | J16: ='Input|archetype demand'!H17*'Input|2015 tariffs'!$Q$15 -> 0 | K16: 337.5942313
C17: Medium consumption, Medium demand | D17: JEN | E17: $ per annum | F17: $Nominal | G17: Residential - General purpose | H17: ='Input|2015 tariffs'!$G$15 -> 26.033 | I17: ='Input|archetype demand'!G18*'Input|2015 tariffs'!$H$15/100 -> 311.5612313 | J17: ='Input|archetype demand'!H18*'Input|2015 tariffs'!$Q$15 -> 0 | K17: 337.5942313
C18: Medium consumption, High demand | D18: JEN | E18: $ per annum | F18: $Nominal | G18: Residential - General purpose | H18: ='Input|2015 tariffs'!$G$15 -> 26.033 | I18: ='Input|archetype demand'!G19*'Input|2015 tariffs'!$H$15/100 -> 311.5612313 | J18: ='Input|archetype demand'!H19*'Input|2015 tariffs'!$Q$15 -> 0 | K18: 337.5942313
C19: High consumption, Low demand | D19: JEN | E19: $ per annum | F19: $Nominal | G19: Residential - General purpose | H19: ='Input|2015 tariffs'!$G$15 -> 26.033 | I19: ='Input|archetype demand'!G20*'Input|2015 tariffs'!$H$15/100 -> 491.7191375 | J19: ='Input|archetype demand'!H20*'Input|2015 tariffs'!$Q$15 -> 0 | K19: 517.7521375
C20: High consumption, Medium demand | D20: JEN | E20: $ per annum | F20: $Nominal | G20: Residential - General purpose | H20: ='Input|2015 tariffs'!$G$15 -> 26.033 | I20: ='Input|archetype demand'!G21*'Input|2015 tariffs'!$H$15/100 -> 491.7191375 | J20: ='Input|archetype demand'!H21*'Input|2015 tariffs'!$Q$15 -> 0 | K20: 517.7521375
C21: High consumption, High demand | D21: JEN | E21: $ per annum | F21: $Nominal | G21: Residential - General purpose | H21: ='Input|2015 tariffs'!$G$15 -> 26.033 | I21: ='Input|archetype demand'!G22*'Input|2015 tariffs'!$H$15/100 -> 491.7191375 | J21: ='Input|archetype demand'!H22*'Input|2015 tariffs'!$Q$15 -> 0 | K21: 517.7521375
C23: 2016 | H23: Fixed | I23: Consumption | J23: Demand | K23: Total
C24: Archetype
C25: Low Consumption, Low Demand | D25: JEN | E25: $ per annum | F25: $Nominal | G25: Residential - General purpose | H25: ='Input|2016 proposed tariffs'!$G$15 -> 26.701 | I25: ='Input|archetype demand'!G14*'Input|2016 proposed tariffs'!$H$15/100 -> 188.93413 | J25: ='Input|archetype demand'!H14*'Input|2016 proposed tariffs'!$Q$15 -> 0 | K25: =SUM(H25:J25) -> 215.63513
C26: Low Consumption, Medium Demand | D26: JEN | E26: $ per annum | F26: $Nominal | G26: Residential - General purpose | H26: ='Input|2016 proposed tariffs'!$G$15 -> 26.701 | I26: ='Input|archetype demand'!G15*('Input|2016 proposed tariffs'!$H$15)/100 -> 188.93413 | J26: ='Input|archetype demand'!H15*'Input|2016 proposed tariffs'!$Q$15 -> 0 | K26: =SUM(H26:J26) -> 215.63513
C27: Low consumption, High demand | D27: JEN | E27: $ per annum | F27: $Nominal | G27: Residential - General purpose | H27: ='Input|2016 proposed tariffs'!$G$15 -> 26.701 | I27: ='Input|archetype demand'!G16*('Input|2016 proposed tariffs'!$H$15)/100 -> 188.93413 | J27: ='Input|archetype demand'!H16*'Input|2016 proposed tariffs'!$Q$15 -> 0 | K27: =SUM(H27:J27) -> 215.63513
C28: Medium consumption, Low demand | D28: JEN | E28: $ per annum | F28: $Nominal | G28: Residential - General purpose | H28: ='Input|2016 proposed tariffs'!$G$15 -> 26.701 | I28: ='Input|archetype demand'!G17*('Input|2016 proposed tariffs'!$H$15)/100 -> 319.4134955 | J28: ='Input|archetype demand'!H17*'Input|2016 proposed tariffs'!$Q$15 -> 0 | K28: =SUM(H28:J28) -> 346.1144955
C29: Medium consumption, Medium demand | D29: JEN | E29: $ per annum | F29: $Nominal | G29: Residential - General purpose | H29: ='Input|2016 proposed tariffs'!$G$15 -> 26.701 | I29: ='Input|archetype demand'!G18*('Input|2016 proposed tariffs'!$H$15)/100 -> 319.4134955 | J29: ='Input|archetype demand'!H18*'Input|2016 proposed tariffs'!$Q$15 -> 0 | K29: =SUM(H29:J29) -> 346.1144955
C30: Medium consumption, High demand | D30: JEN | E30: $ per annum | F30: $Nominal | G30: Residential - General purpose | H30: ='Input|2016 proposed tariffs'!$G$15 -> 26.701 | I30: ='Input|archetype demand'!G19*('Input|2016 proposed tariffs'!$H$15)/100 -> 319.4134955 | J30: ='Input|archetype demand'!H19*'Input|2016 proposed tariffs'!$Q$15 -> 0 | K30: =SUM(H30:J30) -> 346.1144955
C31: High consumption, Low demand | D31: JEN | E31: $ per annum | F31: $Nominal | G31: Residential - General purpose | H31: ='Input|2016 proposed tariffs'!$G$15 -> 26.701 | I31: ='Input|archetype demand'!G20*('Input|2016 proposed tariffs'!$H$15)/100 -> 504.1119135 | J31: ='Input|archetype demand'!H20*'Input|2016 proposed tariffs'!$Q$15 -> 0 | K31: =SUM(H31:J31) -> 530.8129135
C32: High consumption, Medium demand | D32: JEN | E32: $ per annum | F32: $Nominal | G32: Residential - General purpose | H32: ='Input|2016 proposed tariffs'!$G$15 -> 26.701 | I32: ='Input|archetype demand'!G21*('Input|2016 proposed tariffs'!$H$15)/100 -> 504.1119135 | J32: ='Input|archetype demand'!H21*'Input|2016 proposed tariffs'!$Q$15 -> 0 | K32: =SUM(H32:J32) -> 530.8129135
C33: High consumption, High demand | D33: JEN | E33: $ per annum | F33: $Nominal | G33: Residential - General purpose | H33: ='Input|2016 proposed tariffs'!$G$15 -> 26.701 | I33: ='Input|archetype demand'!G22*('Input|2016 proposed tariffs'!$H$15)/100 -> 504.1119135 | J33: ='Input|archetype demand'!H22*'Input|2016 proposed tariffs'!$Q$15 -> 0 | K33: =SUM(H33:J33) -> 530.8129135
C35: 2017 | H35: Fixed | I35: Consumption | J35: Demand | K35: Total
C36: Archetype
C37: Low Consumption, Low Demand | D37: JEN | E37: $ per annum | F37: $Nominal | G37: Residential - General purpose | H37: ='Input|2017 indicative tariffs'!$G$15 -> 27.357 | I37: ='Input|archetype demand'!G14*'Input|2017 indicative tariffs'!$H$15/100 -> 193.71275 | J37: ='Input|archetype demand'!H14*'Input|2017 indicative tariffs'!$Q$15 -> 0 | K37: =SUM(H37:J37) -> 221.06975
C38: Low Consumption, Medium Demand | D38: JEN | E38: $ per annum | F38: $Nominal | G38: Residential - General purpose | H38: ='Input|2017 indicative tariffs'!$G$15 -> 27.357 | I38: ='Input|archetype demand'!G15*'Input|2017 indicative tariffs'!$H$15/100 -> 193.71275 | J38: ='Input|archetype demand'!H15*'Input|2017 indicative tariffs'!$Q$15 -> 0 | K38: 221.06975
C39: Low consumption, High demand | D39: JEN | E39: $ per annum | F39: $Nominal | G39: Residential - General purpose | H39: ='Input|2017 indicative tariffs'!$G$15 -> 27.357 | I39: ='Input|archetype demand'!G16*'Input|2017 indicative tariffs'!$H$15/100 -> 193.71275 | J39: ='Input|archetype demand'!H16*'Input|2017 indicative tariffs'!$Q$15 -> 0 | K39: 221.06975
C40: Medium consumption, Low demand | D40: JEN | E40: $ per annum | F40: $Nominal | G40: Residential - General purpose | H40: ='Input|2017 indicative tariffs'!$G$15 -> 27.357 | I40: ='Input|archetype demand'!G17*'Input|2017 indicative tariffs'!$H$15/100 -> 327.4922673 | J40: ='Input|archetype demand'!H17*'Input|2017 indicative tariffs'!$Q$15 -> 0 | K40: 354.8492673
C41: Medium consumption, Medium demand | D41: JEN | E41: $ per annum | F41: $Nominal | G41: Residential - General purpose | H41: ='Input|2017 indicative tariffs'!$G$15 -> 27.357 | I41: ='Input|archetype demand'!G18*'Input|2017 indicative tariffs'!$H$15/100 -> 327.4922673 | J41: ='Input|archetype demand'!H18*'Input|2017 indicative tariffs'!$Q$15 -> 0 | K41: 354.8492673
C42: Medium consumption, High demand | D42: JEN | E42: $ per annum | F42: $Nominal | G42: Residential - General purpose | H42: ='Input|2017 indicative tariffs'!$G$15 -> 27.357 | I42: ='Input|archetype demand'!G19*'Input|2017 indicative tariffs'!$H$15/100 -> 327.4922673 | J42: ='Input|archetype demand'!H19*'Input|2017 indicative tariffs'!$Q$15 -> 0 | K42: 354.8492673
C43: High consumption, Low demand | D43: JEN | E43: $ per annum | F43: $Nominal | G43: Residential - General purpose | H43: ='Input|2017 indicative tariffs'!$G$15 -> 27.357 | I43: ='Input|archetype demand'!G20*'Input|2017 indicative tariffs'!$H$15/100 -> 516.8621735 | J43: ='Input|archetype demand'!H20*'Input|2017 indicative tariffs'!$Q$15 -> 0 | K43: 544.2191735
C44: High consumption, Medium demand | D44: JEN | E44: $ per annum | F44: $Nominal | G44: Residential - General purpose | H44: ='Input|2017 indicative tariffs'!$G$15 -> 27.357 | I44: ='Input|archetype demand'!G21*'Input|2017 indicative tariffs'!$H$15/100 -> 516.8621735 | J44: ='Input|archetype demand'!H21*'Input|2017 indicative tariffs'!$Q$15 -> 0 | K44: 544.2191735
C45: High consumption, High demand | D45: JEN | E45: $ per annum | F45: $Nominal | G45: Residential - General purpose | H45: ='Input|2017 indicative tariffs'!$G$15 -> 27.357 | I45: ='Input|archetype demand'!G22*'Input|2017 indicative tariffs'!$H$15/100 -> 516.8621735 | J45: ='Input|archetype demand'!H22*'Input|2017 indicative tariffs'!$Q$15 -> 0 | K45: 544.2191735
C47: 2018 | H47: Fixed | I47: Consumption | J47: Demand | K47: Total
C48: Archetype
C49: Low Consumption, Low Demand | D49: JEN | E49: $ per annum | F49: $Nominal | G49: Residential - General purpose | H49: ='Input|2018 indicative tariffs'!$G$15 -> 21.885 | I49: ='Input|archetype demand'!G14*('Input|2018 indicative tariffs'!$H$15)/100 -> 152.5139 | J49: ='Input|archetype demand'!H14*'Input|2018 indicative tariffs'!$Q$15 -> 60.40944 | K49: =SUM(H49:J49) -> 234.80834
C50: Low Consumption, Medium Demand | D50: JEN | E50: $ per annum | F50: $Nominal | G50: Residential - General purpose | H50: ='Input|2018 indicative tariffs'!$G$15 -> 21.885 | I50: ='Input|archetype demand'!G15*('Input|2018 indicative tariffs'!$H$15)/100 -> 152.5139 | J50: ='Input|archetype demand'!H15*'Input|2018 indicative tariffs'!$Q$15 -> 90.0333 | K50: 264.4322
C51: Low consumption, High demand | D51: JEN | E51: $ per annum | F51: $Nominal | G51: Residential - General purpose | H51: ='Input|2018 indicative tariffs'!$G$15 -> 21.885 | I51: ='Input|archetype demand'!G16*('Input|2018 indicative tariffs'!$H$15)/100 -> 152.5139 | J51: ='Input|archetype demand'!H16*'Input|2018 indicative tariffs'!$Q$15 -> 124.01361 | K51: 298.41251
C52: Medium consumption, Low demand | D52: JEN | E52: $ per annum | F52: $Nominal | G52: Residential - General purpose | H52: ='Input|2018 indicative tariffs'!$G$15 -> 21.885 | I52: ='Input|archetype demand'!G17*('Input|2018 indicative tariffs'!$H$15)/100 -> 257.8411741 | J52: ='Input|archetype demand'!H17*'Input|2018 indicative tariffs'!$Q$15 -> 60.40944 | K52: 340.1356141
C53: Medium consumption, Medium demand | D53: JEN | E53: $ per annum | F53: $Nominal | G53: Residential - General purpose | H53: ='Input|2018 indicative tariffs'!$G$15 -> 21.885 | I53: ='Input|archetype demand'!G18*('Input|2018 indicative tariffs'!$H$15)/100 -> 257.8411741 | J53: ='Input|archetype demand'!H18*'Input|2018 indicative tariffs'!$Q$15 -> 90.0333 | K53: 369.7594741
C54: Medium consumption, High demand | D54: JEN | E54: $ per annum | F54: $Nominal | G54: Residential - General purpose | H54: ='Input|2018 indicative tariffs'!$G$15 -> 21.885 | I54: ='Input|archetype demand'!G19*('Input|2018 indicative tariffs'!$H$15)/100 -> 257.8411741 | J54: ='Input|archetype demand'!H19*'Input|2018 indicative tariffs'!$Q$15 -> 124.01361 | K54: 403.7397841
C55: High consumption, Low demand | D55: JEN | E55: $ per annum | F55: $Nominal | G55: Residential - General purpose | H55: ='Input|2018 indicative tariffs'!$G$15 -> 21.885 | I55: ='Input|archetype demand'!G20*('Input|2018 indicative tariffs'!$H$15)/100 -> 406.9358668 | J55: ='Input|archetype demand'!H20*'Input|2018 indicative tariffs'!$Q$15 -> 60.40944 | K55: 489.2303068
C56: High consumption, Medium demand | D56: JEN | E56: $ per annum | F56: $Nominal | G56: Residential - General purpose | H56: ='Input|2018 indicative tariffs'!$G$15 -> 21.885 | I56: ='Input|archetype demand'!G21*('Input|2018 indicative tariffs'!$H$15)/100 -> 406.9358668 | J56: ='Input|archetype demand'!H21*'Input|2018 indicative tariffs'!$Q$15 -> 90.0333 | K56: 518.8541668
C57: High consumption, High demand | D57: JEN | E57: $ per annum | F57: $Nominal | G57: Residential - General purpose | H57: ='Input|2018 indicative tariffs'!$G$15 -> 21.885 | I57: ='Input|archetype demand'!G22*('Input|2018 indicative tariffs'!$H$15)/100 -> 406.9358668 | J57: ='Input|archetype demand'!H22*'Input|2018 indicative tariffs'!$Q$15 -> 124.01361 | K57: 552.8344768
C59: 2019 | H59: Fixed | I59: Consumption | J59: Demand | K59: Total
C60: Archetype
C61: Low Consumption, Low Demand | D61: JEN | E61: $ per annum | F61: $Nominal | G61: Residential - General purpose | H61: ='Input|2019 indicative tariffs'!$G$15 -> 21.031 | I61: ='Input|archetype demand'!G14*('Input|2019 indicative tariffs'!$H$15)/100 -> 147.57897 | J61: ='Input|archetype demand'!H14*'Input|2019 indicative tariffs'!$Q$15 -> 74.32048 | K61: =SUM(H61:J61) -> 242.93045
C62: Low Consumption, Medium Demand | D62: JEN | E62: $ per annum | F62: $Nominal | G62: Residential - General purpose | H62: ='Input|2019 indicative tariffs'!$G$15 -> 21.031 | I62: ='Input|archetype demand'!G15*('Input|2019 indicative tariffs'!$H$15)/100 -> 147.57897 | J62: ='Input|archetype demand'!H15*'Input|2019 indicative tariffs'!$Q$15 -> 110.7661 | K62: 279.37607
C63: Low consumption, High demand | D63: JEN | E63: $ per annum | F63: $Nominal | G63: Residential - General purpose | H63: ='Input|2019 indicative tariffs'!$G$15 -> 21.031 | I63: ='Input|archetype demand'!G16*('Input|2019 indicative tariffs'!$H$15)/100 -> 147.57897 | J63: ='Input|archetype demand'!H16*'Input|2019 indicative tariffs'!$Q$15 -> 152.57137 | K63: 321.18134
C64: Medium consumption, Low demand | D64: JEN | E64: $ per annum | F64: $Nominal | G64: Residential - General purpose | H64: ='Input|2019 indicative tariffs'!$G$15 -> 21.031 | I64: ='Input|archetype demand'!G17*('Input|2019 indicative tariffs'!$H$15)/100 -> 249.4981434 | J64: ='Input|archetype demand'!H17*'Input|2019 indicative tariffs'!$Q$15 -> 74.32048 | K64: 344.8496234
C65: Medium consumption, Medium demand | D65: JEN | E65: $ per annum | F65: $Nominal | G65: Residential - General purpose | H65: ='Input|2019 indicative tariffs'!$G$15 -> 21.031 | I65: ='Input|archetype demand'!G18*('Input|2019 indicative tariffs'!$H$15)/100 -> 249.4981434 | J65: ='Input|archetype demand'!H18*'Input|2019 indicative tariffs'!$Q$15 -> 110.7661 | K65: 381.2952434
C66: Medium consumption, High demand | D66: JEN | E66: $ per annum | F66: $Nominal | G66: Residential - General purpose | H66: ='Input|2019 indicative tariffs'!$G$15 -> 21.031 | I66: ='Input|archetype demand'!G19*('Input|2019 indicative tariffs'!$H$15)/100 -> 249.4981434 | J66: ='Input|archetype demand'!H19*'Input|2019 indicative tariffs'!$Q$15 -> 152.57137 | K66: 423.1005134
C67: High consumption, Low demand | D67: JEN | E67: $ per annum | F67: $Nominal | G67: Residential - General purpose | H67: ='Input|2019 indicative tariffs'!$G$15 -> 21.031 | I67: ='Input|archetype demand'!G20*('Input|2019 indicative tariffs'!$H$15)/100 -> 393.7685423 | J67: ='Input|archetype demand'!H20*'Input|2019 indicative tariffs'!$Q$15 -> 74.32048 | K67: 489.1200223
C68: High consumption, Medium demand | D68: JEN | E68: $ per annum | F68: $Nominal | G68: Residential - General purpose | H68: ='Input|2019 indicative tariffs'!$G$15 -> 21.031 | I68: ='Input|archetype demand'!G21*('Input|2019 indicative tariffs'!$H$15)/100 -> 393.7685423 | J68: ='Input|archetype demand'!H21*'Input|2019 indicative tariffs'!$Q$15 -> 110.7661 | K68: 525.5656423
C69: High consumption, High demand | D69: JEN | E69: $ per annum | F69: $Nominal | G69: Residential - General purpose | H69: ='Input|2019 indicative tariffs'!$G$15 -> 21.031 | I69: ='Input|archetype demand'!G22*('Input|2019 indicative tariffs'!$H$15)/100 -> 393.7685423 | J69: ='Input|archetype demand'!H22*'Input|2019 indicative tariffs'!$Q$15 -> 152.57137 | K69: 567.3709123
C71: 2020 | H71: Fixed | I71: Consumption | J71: Demand | K71: Total
C72: Archetype
C73: Low Consumption, Low Demand | D73: JEN | E73: $ per annum | F73: $Nominal | G73: Residential - General purpose | H73: ='Input|2020 indicative tariffs'!$G$15 -> 20.19 | I73: ='Input|archetype demand'!G14*'Input|2020 indicative tariffs'!$H$15/100 -> 142.26443 | J73: ='Input|archetype demand'!H14*'Input|2020 indicative tariffs'!$Q$15 -> 88.89504 | K73: =SUM(H73:J73) -> 251.34947
C74: Low Consumption, Medium Demand | D74: JEN | E74: $ per annum | F74: $Nominal | G74: Residential - General purpose | H74: ='Input|2020 indicative tariffs'!$G$15 -> 20.19 | I74: ='Input|archetype demand'!G15*'Input|2020 indicative tariffs'!$H$15/100 -> 142.26443 | J74: ='Input|archetype demand'!H15*'Input|2020 indicative tariffs'!$Q$15 -> 132.4878 | K74: 294.94223
C75: Low consumption, High demand | D75: JEN | E75: $ per annum | F75: $Nominal | G75: Residential - General purpose | H75: ='Input|2020 indicative tariffs'!$G$15 -> 20.19 | I75: ='Input|archetype demand'!G16*'Input|2020 indicative tariffs'!$H$15/100 -> 142.26443 | J75: ='Input|archetype demand'!H16*'Input|2020 indicative tariffs'!$Q$15 -> 182.49126 | K75: 344.94569
C76: Medium consumption, Low demand | D76: JEN | E76: $ per annum | F76: $Nominal | G76: Residential - General purpose | H76: ='Input|2020 indicative tariffs'!$G$15 -> 20.19 | I76: ='Input|archetype demand'!G17*'Input|2020 indicative tariffs'!$H$15/100 -> 240.5133412 | J76: ='Input|archetype demand'!H17*'Input|2020 indicative tariffs'!$Q$15 -> 88.89504 | K76: 349.5983812
C77: Medium consumption, Medium demand | D77: JEN | E77: $ per annum | F77: $Nominal | G77: Residential - General purpose | H77: ='Input|2020 indicative tariffs'!$G$15 -> 20.19 | I77: ='Input|archetype demand'!G18*'Input|2020 indicative tariffs'!$H$15/100 -> 240.5133412 | J77: ='Input|archetype demand'!H18*'Input|2020 indicative tariffs'!$Q$15 -> 132.4878 | K77: 393.1911412
C78: Medium consumption, High demand | D78: JEN | E78: $ per annum | F78: $Nominal | G78: Residential - General purpose | H78: ='Input|2020 indicative tariffs'!$G$15 -> 20.19 | I78: ='Input|archetype demand'!G19*'Input|2020 indicative tariffs'!$H$15/100 -> 240.5133412 | J78: ='Input|archetype demand'!H19*'Input|2020 indicative tariffs'!$Q$15 -> 182.49126 | K78: 443.1946012
C79: High consumption, Low demand | D79: JEN | E79: $ per annum | F79: $Nominal | G79: Residential - General purpose | H79: ='Input|2020 indicative tariffs'!$G$15 -> 20.19 | I79: ='Input|archetype demand'!G20*'Input|2020 indicative tariffs'!$H$15/100 -> 379.5883466 | J79: ='Input|archetype demand'!H20*'Input|2020 indicative tariffs'!$Q$15 -> 88.89504 | K79: 488.6733866
C80: High consumption, Medium demand | D80: JEN | E80: $ per annum | F80: $Nominal | G80: Residential - General purpose | H80: ='Input|2020 indicative tariffs'!$G$15 -> 20.19 | I80: ='Input|archetype demand'!G21*'Input|2020 indicative tariffs'!$H$15/100 -> 379.5883466 | J80: ='Input|archetype demand'!H21*'Input|2020 indicative tariffs'!$Q$15 -> 132.4878 | K80: 532.2661466
C81: High consumption, High demand | D81: JEN | E81: $ per annum | F81: $Nominal | G81: Residential - General purpose | H81: ='Input|2020 indicative tariffs'!$G$15 -> 20.19 | I81: ='Input|archetype demand'!G22*'Input|2020 indicative tariffs'!$H$15/100 -> 379.5883466 | J81: ='Input|archetype demand'!H22*'Input|2020 indicative tariffs'!$Q$15 -> 182.49126 | K81: 582.2696066
C83: Small Business - General purpose
C84: 2015 | H84: Fixed | I84: Consumption | J84: Demand | K84: Total
C85: Archetype
C86: Small | D86: JEN | E86: $ per annum | F86: $Nominal | G86: Small business - General purpose | H86: ='Input|2015 tariffs'!$G$22 -> 68.076 | I86: ='Input|archetype demand'!G25*'Input|2015 tariffs'!$I$22/100 -> 563.82 | J86: ='Input|archetype demand'!$H$25*'Input|2015 tariffs'!$Q$22 -> 0 | K86: =SUM(H86:J86) -> 631.896
C87: Medium | D87: JEN | E87: $ per annum | F87: $Nominal | G87: Small business - General purpose | H87: ='Input|2015 tariffs'!$G$22 -> 68.076 | I87: ='Input|archetype demand'!G26*'Input|2015 tariffs'!$I$22/100 -> 1033.67 | J87: ='Input|archetype demand'!$H$26*'Input|2015 tariffs'!$Q$22 -> 0 | K87: =SUM(H87:J87) -> 1101.746
C88: Large | D88: JEN | E88: $ per annum | F88: $Nominal | G88: Small business - General purpose | H88: ='Input|2015 tariffs'!$G$22 -> 68.076 | I88: ='Input|archetype demand'!G27*'Input|2015 tariffs'!$I$22/100 -> 1973.37 | J88: ='Input|archetype demand'!$H$26*'Input|2015 tariffs'!$Q$22 -> 0 | K88: 2041.446
C90: 2016 | H90: Fixed | I90: Consumption | J90: Demand | K90: Total
C91: Archetype
C92: Small | D92: JEN | E92: $ per annum | F92: $Nominal | G92: Small business - General purpose | H92: ='Input|2016 proposed tariffs'!$G$22 -> 70.503 | I92: ='Input|archetype demand'!G25*'Input|2016 proposed tariffs'!I22/100 -> 578.76 | J92: ='Input|archetype demand'!H25*'Input|2016 proposed tariffs'!$Q$22 -> 0 | K92: =SUM(H92:J92) -> 649.263
C93: Medium | D93: JEN | E93: $ per annum | F93: $Nominal | G93: Small business - General purpose | H93: ='Input|2016 proposed tariffs'!$G$22 -> 70.503 | I93: ='Input|archetype demand'!G26*'Input|2016 proposed tariffs'!I23/100 -> 1252.68 | J93: ='Input|archetype demand'!H26*'Input|2016 proposed tariffs'!$Q$22 -> 0 | K93: =SUM(H93:J93) -> 1323.183
C94: Large | D94: JEN | E94: $ per annum | F94: $Nominal | G94: Small business - General purpose | H94: ='Input|2016 proposed tariffs'!$G$22 -> 70.503 | I94: ='Input|archetype demand'!G27*'Input|2016 proposed tariffs'!I24/100 -> 1473.15 | J94: ='Input|archetype demand'!H27*'Input|2016 proposed tariffs'!$Q$22 -> 0 | K94: =SUM(H94:J94) -> 1543.653
C96: 2017 | H96: Fixed | I96: Consumption | J96: Demand | K96: Total
C97: Archetype
C98: Small | D98: JEN | E98: $ per annum | F98: $Nominal | G98: Small business - General purpose | H98: ='Input|2017 indicative tariffs'!$G$22 -> 72.396 | I98: ='Input|archetype demand'!G25*'Input|2017 indicative tariffs'!$I$22/100 -> 594.3 | J98: ='Input|archetype demand'!H25*'Input|2017 indicative tariffs'!$Q$22 -> 0 | K98: =SUM(H98:J98) -> 666.696
C99: Medium | D99: JEN | E99: $ per annum | F99: $Nominal | G99: Small business - General purpose | H99: ='Input|2017 indicative tariffs'!$G$22 -> 72.396 | I99: ='Input|archetype demand'!G26*'Input|2017 indicative tariffs'!$I$22/100 -> 1089.55 | J99: ='Input|archetype demand'!H26*'Input|2017 indicative tariffs'!$Q$22 -> 0 | K99: =SUM(H99:J99) -> 1161.946
C100: Large | D100: JEN | E100: $ per annum | F100: $Nominal | G100: Small business - General purpose | H100: ='Input|2017 indicative tariffs'!$G$22 -> 72.396 | I100: ='Input|archetype demand'!G27*'Input|2017 indicative tariffs'!$I$22/100 -> 2080.05 | J100: ='Input|archetype demand'!H27*'Input|2017 indicative tariffs'!$Q$22 -> 0 | K100: =SUM(H100:J100) -> 2152.446
C102: 2018 | H102: Fixed | I102: Consumption | J102: Demand | K102: Total
C103: Archetype
C104: Small | D104: JEN | E104: $ per annum | F104: $Nominal | G104: Small business - General purpose | H104: ='Input|2018 indicative tariffs'!$G$22 -> 71.85 | I104: ='Input|archetype demand'!G25*'Input|2018 indicative tariffs'!$I$22/100 -> 238.86 | J104: ='Input|archetype demand'!H25*'Input|2018 indicative tariffs'!$Q$22 -> 149.792 | K104: =SUM(H104:J104) -> 460.502
C105: Medium | D105: JEN | E105: $ per annum | F105: $Nominal | G105: Small business - General purpose | H105: ='Input|2018 indicative tariffs'!$G$22 -> 71.85 | I105: ='Input|archetype demand'!G26*'Input|2018 indicative tariffs'!$I$22/100 -> 437.91 | J105: ='Input|archetype demand'!H26*'Input|2018 indicative tariffs'!$Q$22 -> 374.48 | K105: =SUM(H105:J105) -> 884.24
C106: Large | D106: JEN | E106: $ per annum | F106: $Nominal | G106: Small business - General purpose | H106: ='Input|2018 indicative tariffs'!$G$22 -> 71.85 | I106: ='Input|archetype demand'!G27*'Input|2018 indicative tariffs'!$I$22/100 -> 836.01 | J106: ='Input|archetype demand'!H27*'Input|2018 indicative tariffs'!$Q$22 -> 936.2 | K106: =SUM(H106:J106) -> 1844.06
C108: 2019 | H108: Fixed | I108: Consumption | J108: Demand | K108: Total
C109: Archetype
C110: Small | D110: JEN | E110: $ per annum | F110: $Nominal | G110: Small business - General purpose | H110: ='Input|2019 indicative tariffs'!$G$22 -> 67.898 | I110: ='Input|archetype demand'!G25*'Input|2019 indicative tariffs'!$I$22/100 -> 217.38 | J110: ='Input|archetype demand'!H25*'Input|2019 indicative tariffs'!$Q$22 -> 184.288 | K110: =SUM(H110:J110) -> 469.566
C111: Medium | D111: JEN | E111: $ per annum | F111: $Nominal | G111: Small business - General purpose | H111: ='Input|2019 indicative tariffs'!$G$22 -> 67.898 | I111: ='Input|archetype demand'!G26*'Input|2019 indicative tariffs'!$I$22/100 -> 398.53 | J111: ='Input|archetype demand'!H26*'Input|2019 indicative tariffs'!$Q$22 -> 460.72 | K111: =SUM(H111:J111) -> 927.148
C112: Large | D112: JEN | E112: $ per annum | F112: $Nominal | G112: Small business - General purpose | H112: ='Input|2019 indicative tariffs'!$G$22 -> 67.898 | I112: ='Input|archetype demand'!G27*'Input|2019 indicative tariffs'!$I$22/100 -> 760.83 | J112: ='Input|archetype demand'!H27*'Input|2019 indicative tariffs'!$Q$22 -> 1151.8 | K112: =SUM(H112:J112) -> 1980.528
C114: 2020 | H114: Fixed | I114: Consumption | J114: Demand | K114: Total
C115: Archetype
C116: Small | D116: JEN | E116: $ per annum | F116: $Nominal | G116: Small business - General purpose | H116: ='Input|2020 indicative tariffs'!$G$22 -> 62.989 | I116: ='Input|archetype demand'!G25*'Input|2020 indicative tariffs'!$I$22/100 -> 196.5 | J116: ='Input|archetype demand'!H25*'Input|2020 indicative tariffs'!$Q$22 -> 220.432 | K116: =SUM(H116:J116) -> 479.921
C117: Medium | D117: JEN | E117: $ per annum | F117: $Nominal | G117: Small business - General purpose | H117: ='Input|2020 indicative tariffs'!$G$22 -> 62.989 | I117: ='Input|archetype demand'!G26*'Input|2020 indicative tariffs'!$I$22/100 -> 360.25 | J117: ='Input|archetype demand'!H26*'Input|2020 indicative tariffs'!$Q$22 -> 551.08 | K117: =SUM(H117:J117) -> 974.319
C118: Large | D118: JEN | E118: $ per annum | F118: $Nominal | G118: Small business - General purpose | H118: ='Input|2020 indicative tariffs'!$G$22 -> 62.989 | I118: ='Input|archetype demand'!G27*'Input|2020 indicative tariffs'!$I$22/100 -> 687.75 | J118: ='Input|archetype demand'!H27*'Input|2020 indicative tariffs'!$Q$22 -> 1377.7 | K118: =SUM(H118:J118) -> 2128.439
C120: Large Business
C121: 2015 | H121: Fixed | I121: Consumption | J121: Demand | K121: Total
C122: Low Voltage | D122: JEN | E122: $ per annum | F122: $Nominal | G122: A300 Large business LV 0.4 - 0.8 GWh | H122: ='Input|2015 tariffs'!G30 -> 1957.64 | I122: ='Input|archetype demand'!$I$30*'Input|2015 tariffs'!$I$30/100 +'Input|archetype demand'!$J$30*'Input|2015 tariffs'!$J$30/100 -> 5451.1104 | J122: ='Input|archetype demand'!$H$30*'Input|2015 tariffs'!Q30 -> 18446.7231 | K122: =SUM(H122:J122) -> 25855.4735
C123: High Voltage | D123: JEN | E123: $ per annum | F123: $Nominal | G123: A400 Large Business HV | H123: ='Input|2015 tariffs'!G41 -> 3425.701 | I123: ='Input|archetype demand'!$I$33*'Input|2015 tariffs'!I41/100 + 'Input|archetype demand'!$J$33*'Input|2015 tariffs'!J41/100 -> 34446.715 | J123: ='Input|archetype demand'!$H$33*'Input|2015 tariffs'!Q41 -> 181938.7791 | K123: =SUM(H123:J123) -> 219811.1951
C125: 2016 | H125: Fixed | I125: Consumption | J125: Demand | K125: Total
C126: Low Voltage | D126: JEN | E126: $ per annum | F126: $Nominal | G126: A300 Large business LV 0.4 - 0.8 GWh | H126: ='Input|2016 proposed tariffs'!G30 -> 2009.713 | I126: ='Input|archetype demand'!$I$30*'Input|2016 proposed tariffs'!$I$30/100 +'Input|archetype demand'!$J$30*'Input|2016 proposed tariffs'!$J$30/100 -> 5770.6816 | J126: ='Input|archetype demand'!$H$30*'Input|2016 proposed tariffs'!Q30 -> 18723.42225 | K126: =SUM(H126:J126) -> 26503.81685
C127: High Voltage | D127: JEN | E127: $ per annum | F127: $Nominal | G127: A400 Large Business HV | H127: ='Input|2016 proposed tariffs'!G41 -> 3529.842 | I127: ='Input|archetype demand'!$I$33*'Input|2016 proposed tariffs'!I41/100 + 'Input|archetype demand'!$J$33*'Input|2016 proposed tariffs'!J41/100 -> 36572.739 | J127: ='Input|archetype demand'!$H$33*'Input|2016 proposed tariffs'!Q41 -> 185123.3913 | K127: =SUM(H127:J127) -> 225225.9723
C129: 2017 | H129: Fixed | I129: Consumption | J129: Demand | K129: Total
C130: Low Voltage | D130: JEN | E130: $ per annum | F130: $Nominal | G130: A300 Large business LV 0.4 - 0.8 GWh | H130: ='Input|2017 indicative tariffs'!G30 -> 2060.257 | I130: ='Input|archetype demand'!$I$30*'Input|2017 indicative tariffs'!$I$30/100 +'Input|archetype demand'!$J$30*'Input|2017 indicative tariffs'!$J$30/100 -> 6102.176 | J130: ='Input|archetype demand'!L$30*'Input|2017 indicative tariffs'!R$30 -> 18931.575 | K130: =SUM(H130:J130) -> 27094.008
C131: High Voltage | D131: JEN | E131: $ per annum | F131: $Nominal | G131: A400 Large Business HV | H131: ='Input|2017 indicative tariffs'!G41 -> 3618.088 | I131: ='Input|archetype demand'!$I$33*'Input|2017 indicative tariffs'!$I$41/100 + 'Input|archetype demand'!$J$33*'Input|2017 indicative tariffs'!$J$41/100 -> 38808.032 | J131: ='Input|archetype demand'!L$33*'Input|2017 indicative tariffs'!R$41 -> 189381.54 | K131: =SUM(H131:J131) -> 231807.66
C133: 2018 | H133: Fixed | I133: Consumption | J133: Demand | K133: Total
C134: Low Voltage | D134: JEN | E134: $ per annum | F134: $Nominal | G134: A300 Large business LV 0.4 - 0.8 GWh | H134: ='Input|2018 indicative tariffs'!G30 -> 2060.257 | I134: ='Input|archetype demand'!$I$30*'Input|2018 indicative tariffs'!$I$30/100 +'Input|archetype demand'!$J$30*'Input|2018 indicative tariffs'!$J$30/100 -> 6269.0272 | J134: ='Input|archetype demand'!L$30*'Input|2018 indicative tariffs'!R$30 -> 18931.575 | K134: =SUM(H134:J134) -> 27260.8592
C135: High Voltage | D135: JEN | E135: $ per annum | F135: $Nominal | G135: A400 Large Business HV | H135: ='Input|2018 indicative tariffs'!G41 -> 3618.088 | I135: ='Input|archetype demand'!$I$33*'Input|2018 indicative tariffs'!$I$41/100 + 'Input|archetype demand'!$J$33*'Input|2018 indicative tariffs'!$J$41/100 -> 40139.495 | J135: ='Input|archetype demand'!L$33*'Input|2018 indicative tariffs'!R$41 -> 189381.54 | K135: =SUM(H135:J135) -> 233139.123
C137: 2019 | H137: Fixed | I137: Consumption | J137: Demand | K137: Total
C138: Low Voltage | D138: JEN | E138: $ per annum | F138: $Nominal | G138: A300 Large business LV 0.4 - 0.8 GWh | H138: ='Input|2019 indicative tariffs'!G30 -> 2112.794 | I138: ='Input|archetype demand'!$I$30*'Input|2019 indicative tariffs'!$I$30/100 +'Input|archetype demand'!$J$30*'Input|2019 indicative tariffs'!$J$30/100 -> 6657.9296 | J138: ='Input|archetype demand'!L$30*'Input|2019 indicative tariffs'!R$30 -> 19177.665 | K138: =SUM(H138:J138) -> 27948.3886
C139: High Voltage | D139: JEN | E139: $ per annum | F139: $Nominal | G139: A400 Large Business HV | H139: ='Input|2019 indicative tariffs'!G41 -> 3711.796 | I139: ='Input|archetype demand'!$I$33*'Input|2019 indicative tariffs'!$I$41/100 + 'Input|archetype demand'!$J$33*'Input|2019 indicative tariffs'!$J$41/100 -> 42598.722 | J139: ='Input|archetype demand'!L$33*'Input|2019 indicative tariffs'!R$41 -> 192600.873 | K139: =SUM(H139:J139) -> 238911.391
C141: 2020 | H141: Fixed | I141: Consumption | J141: Demand | K141: Total
C142: Low Voltage | D142: JEN | E142: $ per annum | F142: $Nominal | G142: A300 Large business LV 0.4 - 0.8 GWh | H142: ='Input|2020 indicative tariffs'!G30 -> 2165.614 | I142: ='Input|archetype demand'!$I$30*'Input|2020 indicative tariffs'!$I$30/100 +'Input|archetype demand'!$J$30*'Input|2020 indicative tariffs'!$J$30/100 -> 7028.432 | J142: ='Input|archetype demand'!L$30*'Input|2020 indicative tariffs'!R$30 -> 19463.34 | K142: =SUM(H142:J142) -> 28657.386
C143: High Voltage | D143: JEN | E143: $ per annum | F143: $Nominal | G143: A400 Large Business HV | H143: ='Input|2020 indicative tariffs'!G41 -> 3789.373 | I143: ='Input|archetype demand'!$I$33*'Input|2020 indicative tariffs'!$I$41/100 + 'Input|archetype demand'!$J$33*'Input|2020 indicative tariffs'!$J$41/100 -> 45099.768 | J143: ='Input|archetype demand'!L$33*'Input|2020 indicative tariffs'!R$41 -> 195942.75 | K143: =SUM(H143:J143) -> 244831.891

Sheet Calc|Customer outcomes
C1: =Index!$C$1 -> JEN tariffs and customer outcomes | D1: =Index!$C$1 -> JEN tariffs and customer outcomes | E1: =Index!$C$1 -> JEN tariffs and customer outcomes
C2: =Index!$C$28 -> Calc|Customer tariff | D2: =Index!$C$27 -> Input|archetype demand | E2: =Index!$C$27 -> Input|archetype demand
D4: Source | E4: Unit | F4: Basis
B6: Copyright Jemena Limited. All rights reserved. Jemena is not liable for any loss caused by reliance on this document.
B8: Customer outcomes
C10: Customer Outcomes | D10: Source | E10: Unit | F10: Basis | H10: 2015 | I10: 2016 | J10: 2017 | K10: 2018 | L10: 2019 | M10: 2020 | N10: Total
C12: Residential - General purpose
C14: Low Consumption, Low Demand
C16: Tariff charges | D16: Calc|Customer tariff | E16: $ per annum | F16: Nominal | H16: ='Calc|Customer tariff'!K13 -> 210.32249 | I16: ='Calc|Customer tariff'!K25 -> 215.63513 | J16: ='Calc|Customer tariff'!K37 -> 221.06975 | K16: ='Calc|Customer tariff'!K49 -> 234.80834 | L16: ='Calc|Customer tariff'!K61 -> 242.93045 | M16: ='Calc|Customer tariff'!K73 -> 251.34947
C17: Metering charges | D17: Calc|Customer tariff | E17: $ per annum | F17: Nominal | H17: ='Input|2015 tariffs'!F48 -> 226.32 | I17: ='Input|2016 proposed tariffs'!F48 -> 94.2187056 | J17: ='Input|2017 indicative tariffs'!F48 -> 96.59673057 | K17: ='Input|2018 indicative tariffs'!F48 -> 99.0347755 | L17: ='Input|2019 indicative tariffs'!F48 -> 101.5343553 | M17: ='Input|2020 indicative tariffs'!F48 -> 104.0970229
C19: Total charges | D19: Calculated | E19: $ per annum | F19: Nominal | H19: =SUM(H16:H17) -> 436.64249 | I19: 309.8538356 | J19: 317.6664806 | K19: 333.8431155 | L19: 344.4648053 | M19: 355.4464929
C21: Year-on-year change | D21: Calculated | E21: $ per annum | F21: Nominal | I21: =I19-H19 -> -126.7886544 | J21: =J19-I19 -> 7.812644971 | K21: =K19-J19 -> 16.17663493 | L21: =L19-K19 -> 10.62168976 | M21: =M19-L19 -> 10.98168769 | N21: =SUM(I21:M21) -> -81.19599706
C22: Year-on-year change | D22: Calculated | E22: per cent | F22: Nominal | I22: =I19/H19-1 -> -0.2903717739 | J22: =J19/I19-1 -> 0.02521396889 | K22: =K19/J19-1 -> 0.05092332971 | L22: =L19/K19-1 -> 0.03181641095 | M22: =M19/L19-1 -> 0.03188043457 | N22: =M19/H19-1 -> -0.1859553271
C24: Low Consumption, Medium Demand
C26: Tariff charges | D26: Calc|Customer tariff | E26: $ per annum | F26: Nominal | H26: ='Calc|Customer tariff'!K14 -> 210.32249 | I26: ='Calc|Customer tariff'!K26 -> 215.63513 | J26: ='Calc|Customer tariff'!K38 -> 221.06975 | K26: ='Calc|Customer tariff'!K50 -> 264.4322 | L26: ='Calc|Customer tariff'!K62 -> 279.37607 | M26: ='Calc|Customer tariff'!K74 -> 294.94223
C27: Metering charges | D27: Calc|Customer tariff | E27: $ per annum | F27: Nominal | H27: ='Input|2015 tariffs'!F48 -> 226.32 | I27: ='Input|2016 proposed tariffs'!F48 -> 94.2187056 | J27: ='Input|2017 indicative tariffs'!F48 -> 96.59673057 | K27: ='Input|2018 indicative tariffs'!F48 -> 99.0347755 | L27: ='Input|2019 indicative tariffs'!F48 -> 101.5343553 | M27: ='Input|2020 indicative tariffs'!F48 -> 104.0970229
C29: Total charges | D29: Calculated | E29: $ per annum | F29: Nominal | H29: =SUM(H26:H27) -> 436.64249 | I29: 309.8538356 | J29: 317.6664806 | K29: 363.4669755 | L29: 380.9104253 | M29: =SUM(M26:M27) -> 399.0392529
C31: Year-on-year change | D31: Calculated | E31: $ per annum | F31: Nominal | I31: =I29-H29 -> -126.7886544 | J31: =J29-I29 -> 7.812644971 | K31: =K29-J29 -> 45.80049493 | L31: =L29-K29 -> 17.44344976 | M31: =M29-L29 -> 18.12882769 | N31: =SUM(I31:M31) -> -37.60323706
C32: Year-on-year change | D32: Calculated | E32: per cent | F32: Nominal | I32: =I29/H29-1 -> -0.2903717739 | J32: =J29/I29-1 -> 0.02521396889 | K32: =K29/J29-1 -> 0.1441779279 | L32: =L29/K29-1 -> 0.04799184226 | M32: =M29/L29-1 -> 0.04759341431 | N32: =M29/H29-1 -> -0.08611905144
C34: Low Consumption, High Demand
C36: Tariff charges | D36: Calc|Customer tariff | E36: $ per annum | F36: Nominal | H36: ='Calc|Customer tariff'!K15 -> 210.32249 | I36: ='Calc|Customer tariff'!K27 -> 215.63513 | J36: ='Calc|Customer tariff'!K39 -> 221.06975 | K36: ='Calc|Customer tariff'!K51 -> 298.41251 | L36: ='Calc|Customer tariff'!K63 -> 321.18134 | M36: ='Calc|Customer tariff'!K75 -> 344.94569
C37: Metering charges | D37: Calc|Customer tariff | E37: $ per annum | F37: Nominal | H37: ='Input|2015 tariffs'!F48 -> 226.32 | I37: ='Input|2016 proposed tariffs'!F48 -> 94.2187056 | J37: ='Input|2017 indicative tariffs'!F48 -> 96.59673057 | K37: ='Input|2018 indicative tariffs'!F48 -> 99.0347755 | L37: ='Input|2019 indicative tariffs'!F48 -> 101.5343553 | M37: ='Input|2020 indicative tariffs'!F48 -> 104.0970229
C39: Total charges | D39: Calculated | E39: $ per annum | F39: Nominal | H39: =SUM(H36:H37) -> 436.64249 | I39: 309.8538356 | J39: 317.6664806 | K39: 397.4472855 | L39: 422.7156953 | M39: 449.0427129
C41: Year-on-year change | D41: Calculated | E41: $ per annum | F41: Nominal | I41: =I39-H39 -> -126.7886544 | J41: =J39-I39 -> 7.812644971 | K41: =K39-J39 -> 79.78080493 | L41: =L39-K39 -> 25.26840976 | M41: =M39-L39 -> 26.32701769 | N41: =SUM(I41:M41) -> 12.40022294
C42: Year-on-year change | D42: Calculated | E42: per cent | F42: Nominal | I42: =I39/H39-1 -> -0.2903717739 | J42: =J39/I39-1 -> 0.02521396889 | K42: =K39/J39-1 -> 0.2511464376 | L42: =L39/K39-1 -> 0.06357675767 | M42: =M39/L39-1 -> 0.06228067228 | N42: =M39/H39-1 -> 0.02839902947
C44: Medium Consumption, Low Demand
C46: Tariff charges | D46: Calc|Customer tariff | E46: $ per annum | F46: Nominal | H46: ='Calc|Customer tariff'!K16 -> 337.5942313 | I46: ='Calc|Customer tariff'!K28 -> 346.1144955 | J46: ='Calc|Customer tariff'!K40 -> 354.8492673 | K46: ='Calc|Customer tariff'!K52 -> 340.1356141 | L46: ='Calc|Customer tariff'!K64 -> 344.8496234 | M46: ='Calc|Customer tariff'!K76 -> 349.5983812
C47: Metering charges | D47: Calc|Customer tariff | E47: $ per annum | F47: Nominal | H47: ='Input|2015 tariffs'!F48 -> 226.32 | I47: ='Input|2016 proposed tariffs'!F48 -> 94.2187056 | J47: ='Input|2017 indicative tariffs'!F48 -> 96.59673057 | K47: ='Input|2018 indicative tariffs'!F48 -> 99.0347755 | L47: ='Input|2019 indicative tariffs'!F48 -> 101.5343553 | M47: ='Input|2020 indicative tariffs'!F48 -> 104.0970229
C49: Total charges | D49: Calculated | E49: $ per annum | F49: Nominal | H49: =SUM(H46:H47) -> 563.9142313 | I49: 440.3332011 | J49: 451.4459978 | K49: 439.1703896 | L49: 446.3839787 | M49: 453.6954041
C51: Year-on-year change | D51: Calculated | E51: $ per annum | F51: Nominal | I51: =I49-H49 -> -123.5810302 | J51: =J49-I49 -> 11.11279675 | K51: =K49-J49 -> -12.27560822 | L51: =L49-K49 -> 7.213589086 | M51: =M49-L49 -> 7.311425425 | N51: =SUM(I51:M51) -> -110.2188272
C52: Year-on-year change | D52: Calculated | E52: per cent | F52: Nominal | I52: =I49/H49-1 -> -0.2191486282 | J52: =J49/I49-1 -> 0.02523724471 | K52: =K49/J49-1 -> -0.02719175334 | L52: =L49/K49-1 -> 0.01642549055 | M52: =M49/L49-1 -> 0.01637922904 | N52: =M49/H49-1 -> -0.1954531755
C54: Medium Consumption, Medium Demand
C56: Tariff charges | D56: Calc|Customer tariff | E56: $ per annum | F56: Nominal | H56: ='Calc|Customer tariff'!K17 -> 337.5942313 | I56: ='Calc|Customer tariff'!K29 -> 346.1144955 | J56: ='Calc|Customer tariff'!K41 -> 354.8492673 | K56: ='Calc|Customer tariff'!K53 -> 369.7594741 | L56: ='Calc|Customer tariff'!K65 -> 381.2952434 | M56: ='Calc|Customer tariff'!K77 -> 393.1911412
C57: Metering charges | D57: Calc|Customer tariff | E57: $ per annum | F57: Nominal | H57: ='Input|2015 tariffs'!F48 -> 226.32 | I57: ='Input|2016 proposed tariffs'!F48 -> 94.2187056 | J57: ='Input|2017 indicative tariffs'!F48 -> 96.59673057 | K57: ='Input|2018 indicative tariffs'!F48 -> 99.0347755 | L57: ='Input|2019 indicative tariffs'!F48 -> 101.5343553 | M57: ='Input|2020 indicative tariffs'!F48 -> 104.0970229
C59: Total charges | D59: Calculated | E59: $ per annum | F59: Nominal | H59: =SUM(H56:H57) -> 563.9142313 | I59: 440.3332011 | J59: 451.4459978 | K59: 468.7942496 | L59: 482.8295987 | M59: 497.2881641
C61: Year-on-year change | D61: Calculated | E61: $ per annum | F61: Nominal | I61: =I59-H59 -> -123.5810302 | J61: =J56-I56 -> 8.73477178 | K61: =K56-J56 -> 14.91020685 | L61: =L56-K56 -> 11.53576933 | M61: =M56-L56 -> 11.89589774 | N61: =SUM(I61:M61) -> -76.50438454
C62: Year-on-year change | D62: Calculated | E62: per cent | F62: Nominal | I62: =I59/H59-1 -> -0.2191486282 | J62: =J59/I59-1 -> 0.02523724471 | K62: =K59/J59-1 -> 0.03842818823 | L62: =L59/K59-1 -> 0.02993925181 | M62: =M59/L59-1 -> 0.02994548276 | N62: =M59/H59-1 -> -0.118149292
C64: Medium Consumption, High Demand
C66: Tariff charges | D66: Calc|Customer tariff | E66: $ per annum | F66: Nominal | H66: ='Calc|Customer tariff'!K18 -> 337.5942313 | I66: ='Calc|Customer tariff'!K30 -> 346.1144955 | J66: ='Calc|Customer tariff'!K42 -> 354.8492673 | K66: ='Calc|Customer tariff'!K54 -> 403.7397841 | L66: ='Calc|Customer tariff'!K66 -> 423.1005134 | M66: ='Calc|Customer tariff'!K78 -> 443.1946012
C67: Metering charges | D67: Calc|Customer tariff | E67: $ per annum | F67: Nominal | H67: ='Input|2015 tariffs'!F48 -> 226.32 | I67: ='Input|2016 proposed tariffs'!F48 -> 94.2187056 | J67: ='Input|2017 indicative tariffs'!F48 -> 96.59673057 | K67: ='Input|2018 indicative tariffs'!F48 -> 99.0347755 | L67: ='Input|2019 indicative tariffs'!F48 -> 101.5343553 | M67: ='Input|2020 indicative tariffs'!F48 -> 104.0970229
C69: Total charges | D69: Calculated | E69: $ per annum | F69: Nominal | H69: =SUM(H66:H67) -> 563.9142313 | I69: 440.3332011 | J69: 451.4459978 | K69: 502.7745596 | L69: 524.6348687 | M69: 547.2916241
C71: Year-on-year change | D71: Calculated | E71: $ per annum | F71: Nominal | I71: =I69-H69 -> -123.5810302 | J71: =J69-I69 -> 11.11279675 | K71: =K69-J69 -> 51.32856178 | L71: =L69-K69 -> 21.86030909 | M71: =M69-L69 -> 22.65675543 | N71: =SUM(I71:M71) -> -16.6226072
C72: Year-on-year change | D72: Calculated | E72: per cent | F72: Nominal | I72: =I69/H69-1 -> -0.2191486282 | J72: =J69/I69-1 -> 0.02523724471 | K72: =K69/J69-1 -> 0.1136981212 | L72: =L69/K69-1 -> 0.0434793461 | M72: =M69/L69-1 -> 0.04318575981 | N72: =M69/H69-1 -> -0.02947719046
C74: High Consumption, Low Demand
C76: Tariff charges | D76: Calc|Customer tariff | E76: $ per annum | F76: Nominal | H76: ='Calc|Customer tariff'!K19 -> 517.7521375 | I76: ='Calc|Customer tariff'!K31 -> 530.8129135 | J76: ='Calc|Customer tariff'!K43 -> 544.2191735 | K76: ='Calc|Customer tariff'!K55 -> 489.2303068 | L76: ='Calc|Customer tariff'!K67 -> 489.1200223 | M76: ='Calc|Customer tariff'!K79 -> 488.6733866
C77: Metering charges | D77: Calc|Customer tariff | E77: $ per annum | F77: Nominal | H77: ='Input|2015 tariffs'!F48 -> 226.32 | I77: ='Input|2016 proposed tariffs'!F48 -> 94.2187056 | J77: ='Input|2017 indicative tariffs'!F48 -> 96.59673057 | K77: ='Input|2018 indicative tariffs'!F48 -> 99.0347755 | L77: ='Input|2019 indicative tariffs'!F48 -> 101.5343553 | M77: ='Input|2020 indicative tariffs'!F48 -> 104.0970229
C79: Total charges | D79: Calculated | E79: $ per annum | F79: Nominal | H79: =SUM(H76:H77) -> 744.0721375 | I79: 625.0316191 | J79: 640.815904 | K79: 588.2650823 | L79: 590.6543775 | M79: 592.7704096
C81: Year-on-year change | D81: Calculated | E81: $ per annum | F81: Nominal | I81: =I79-H79 -> -119.0405184 | J81: =J79-I79 -> 15.78428493 | K81: =K79-J79 -> -52.5508217 | L81: =L79-K79 -> 2.389295222 | M81: =M79-L79 -> 2.116032033 | N81: =SUM(I81:M81) -> -151.3017279
C82: Year-on-year change | D82: Calculated | E82: per cent | F82: Nominal | I82: =I79/H79-1 -> -0.1599851847 | J82: =J79/I79-1 -> 0.02525357829 | K82: =K79/J79-1 -> -0.08200611341 | L82: =L79/K79-1 -> 0.004061596198 | M82: =M79/L79-1 -> 0.003582521545 | N82: =M79/H79-1 -> -0.2033428216
C84: High Consumption, Medium Demand
C86: Tariff charges | D86: Calc|Customer tariff | E86: $ per annum | F86: Nominal | H86: ='Calc|Customer tariff'!K20 -> 517.7521375 | I86: ='Calc|Customer tariff'!K32 -> 530.8129135 | J86: ='Calc|Customer tariff'!K44 -> 544.2191735 | K86: ='Calc|Customer tariff'!K56 -> 518.8541668 | L86: ='Calc|Customer tariff'!K68 -> 525.5656423 | M86: ='Calc|Customer tariff'!K80 -> 532.2661466
C87: Metering charges | D87: Calc|Customer tariff | E87: $ per annum | F87: Nominal | H87: ='Input|2015 tariffs'!F48 -> 226.32 | I87: ='Input|2016 proposed tariffs'!F48 -> 94.2187056 | J87: ='Input|2017 indicative tariffs'!F48 -> 96.59673057 | K87: ='Input|2018 indicative tariffs'!F48 -> 99.0347755 | L87: ='Input|2019 indicative tariffs'!F48 -> 101.5343553 | M87: ='Input|2020 indicative tariffs'!F48 -> 104.0970229
C89: Total charges | D89: Calculated | E89: $ per annum | F89: Nominal | H89: =SUM(H86:H87) -> 744.0721375 | I89: 625.0316191 | J89: =SUM(J86:J87) -> 640.815904 | K89: =SUM(K86:K87) -> 617.8889423 | L89: =SUM(L86:L87) -> 627.0999975 | M89: 636.3631696
C91: Year-on-year change | D91: Calculated | E91: $ per annum | F91: Nominal | I91: =I89-H89 -> -119.0405184 | J91: =J89-I89 -> 15.78428493 | K91: =K89-J89 -> -22.9269617 | L91: =L89-K89 -> 9.211055222 | M91: =M89-L89 -> 9.263172033 | N91: =SUM(I91:M91) -> -107.7089679
C92: Year-on-year change | D92: Calculated | E92: per cent | F92: Nominal | I92: =I89/H89-1 -> -0.1599851847 | J92: =J89/I89-1 -> 0.02525357829 | K92: =K89/J89-1 -> -0.03577776637 | L92: =L89/K89-1 -> 0.01490729902 | M92: =M89/L89-1 -> 0.01477144326 | N92: =M89/H89-1 -> -0.1447560827
C94: High Consumption, High Demand
C96: Tariff charges | D96: Calc|Customer tariff | E96: $ per annum | F96: Nominal | H96: ='Calc|Customer tariff'!K21 -> 517.7521375 | I96: ='Calc|Customer tariff'!K33 -> 530.8129135 | J96: ='Calc|Customer tariff'!K45 -> 544.2191735 | K96: ='Calc|Customer tariff'!K57 -> 552.8344768 | L96: ='Calc|Customer tariff'!K69 -> 567.3709123 | M96: ='Calc|Customer tariff'!K81 -> 582.2696066
C97: Metering charges | D97: Calc|Customer tariff | E97: $ per annum | F97: Nominal | H97: ='Input|2015 tariffs'!F48 -> 226.32 | I97: ='Input|2016 proposed tariffs'!F48 -> 94.2187056 | J97: ='Input|2017 indicative tariffs'!F48 -> 96.59673057 | K97: ='Input|2018 indicative tariffs'!F48 -> 99.0347755 | L97: ='Input|2019 indicative tariffs'!F48 -> 101.5343553 | M97: ='Input|2020 indicative tariffs'!F48 -> 104.0970229
C99: Total charges | D99: Calculated | E99: $ per annum | F99: Nominal | H99: =SUM(H96:H97) -> 744.0721375 | I99: 625.0316191 | J99: 640.815904 | K99: 651.8692523 | L99: 668.9052675 | M99: 686.3666296
C101: Year-on-year change | D101: Calculated | E101: $ per annum | F101: Nominal | I101: =I99-H99 -> -119.0405184 | J101: =J99-I99 -> 15.78428493 | K101: =K99-J99 -> 11.0533483 | L101: =L99-K99 -> 17.03601522 | M101: =M99-L99 -> 17.46136203 | N101: =SUM(I101:M101) -> -57.70550789
C102: Year-on-year change | D102: Calculated | E102: per cent | F102: Nominal | I102: =I99/H99-1 -> -0.1599851847 | J102: =J99/I99-1 -> 0.02525357829 | K102: =K99/J99-1 -> 0.017248867 | L102: =L99/K99-1 -> 0.02613409846 | M102: =M99/L99-1 -> 0.02610438709 | N102: =M99/H99-1 -> -0.07755364699
C104: Small business - General purpose
C106: Small Business (small)
C108: Tariff charges | D108: Calc|Customer tariff | E108: $ per annum | F108: Nominal | H108: ='Calc|Customer tariff'!K86 -> 631.896 | I108: ='Calc|Customer tariff'!K92 -> 649.263 | J108: ='Calc|Customer tariff'!K98 -> 666.696 | K108: ='Calc|Customer tariff'!K104 -> 460.502 | L108: ='Calc|Customer tariff'!K110 -> 469.566 | M108: ='Calc|Customer tariff'!K116 -> 479.921
C109: Metering charges | D109: Calc|Customer tariff | E109: $ per annum | F109: Nominal | H109: ='Input|2015 tariffs'!F48 -> 226.32 | I109: ='Input|2016 proposed tariffs'!F48 -> 94.2187056 | J109: ='Input|2017 indicative tariffs'!F48 -> 96.59673057 | K109: ='Input|2018 indicative tariffs'!F48 -> 99.0347755 | L109: ='Input|2019 indicative tariffs'!F48 -> 101.5343553 | M109: ='Input|2020 indicative tariffs'!F48 -> 104.0970229
C111: Total charges | D111: Calculated | E111: $ per annum | F111: Nominal | H111: =SUM(H108:H109) -> 858.216 | I111: =SUM(I108:I109) -> 743.4817056 | J111: =SUM(J108:J109) -> 763.2927306 | K111: =SUM(K108:K109) -> 559.5367755 | L111: =SUM(L108:L109) -> 571.1003553 | M111: =SUM(M108:M109) -> 584.0180229
C113: Year-on-year change | D113: Calculated | E113: $ per annum | F113: Nominal | I113: =I111-H111 -> -114.7342944 | J113: =J111-I111 -> 19.81102497 | K113: =K111-J111 -> -203.7559551 | L113: =L111-K111 -> 11.56357976 | M113: 12.91766769 | N113: =SUM(I113:M113) -> -274.1979771
C114: Year-on-year change | D114: Calculated | E114: per cent | F114: Nominal | I114: =I111/H111-1 -> -0.1336892978 | J114: =J111/I111-1 -> 0.0266462844 | K114: =K111/J111-1 -> -0.2669433979 | L114: =L111/K111-1 -> 0.02066634449 | M114: 0.02261891026 | N114: =M111/H111-1 -> -0.3194976289
C116: Small Business (medium)
C118: Tariff charges | D118: Calc|Customer tariff | E118: $ per annum | F118: Nominal | H118: ='Calc|Customer tariff'!K87 -> 1101.746 | I118: ='Calc|Customer tariff'!K93 -> 1323.183 | J118: ='Calc|Customer tariff'!K99 -> 1161.946 | K118: ='Calc|Customer tariff'!K105 -> 884.24 | L118: ='Calc|Customer tariff'!K111 -> 927.148 | M118: ='Calc|Customer tariff'!K117 -> 974.319
C119: Metering charges | D119: Calc|Customer tariff | E119: $ per annum | F119: Nominal | H119: ='Input|2015 tariffs'!F48 -> 226.32 | I119: ='Input|2016 proposed tariffs'!F48 -> 94.2187056 | J119: ='Input|2017 indicative tariffs'!F48 -> 96.59673057 | K119: ='Input|2018 indicative tariffs'!F48 -> 99.0347755 | L119: ='Input|2019 indicative tariffs'!F48 -> 101.5343553 | M119: ='Input|2020 indicative tariffs'!F48 -> 104.0970229
C121: Total charges | D121: Calculated | E121: $ per annum | F121: Nominal | H121: =SUM(H118:H119) -> 1328.066 | I121: =SUM(I118:I119) -> 1417.401706 | J121: =SUM(J118:J119) -> 1258.542731 | K121: =SUM(K118:K119) -> 983.2747755 | L121: =SUM(L118:L119) -> 1028.682355 | M121: =SUM(M118:M119) -> 1078.416023
C123: Year-on-year change | D123: Calculated | E123: $ per annum | F123: Nominal | I123: =I121-H121 -> 89.3357056 | J123: =J121-I121 -> -158.858975 | K123: =K121-J121 -> -275.2679551 | L123: =L121-K121 -> 45.40757976 | M123: =M121-L121 -> 49.73366769 | N123: =SUM(I123:M123) -> -249.6499771
C124: Year-on-year change | D124: Calculated | E124: per cent | F124: Nominal | I124: =I121/H121-1 -> 0.06726751954 | J124: =J121/I121-1 -> -0.1120775955 | K124: =K121/J121-1 -> -0.218719594 | L124: 0.04617994978 | M124: 0.04834696292 | N124: =M121/H121-1 -> -0.1879800982
C126: Small Business (large)
C128: Tariff charges | D128: Calc|Customer tariff | E128: $ per annum | F128: Nominal | H128: ='Calc|Customer tariff'!K88 -> 2041.446 | I128: ='Calc|Customer tariff'!K94 -> 1543.653 | J128: ='Calc|Customer tariff'!K100 -> 2152.446 | K128: ='Calc|Customer tariff'!K106 -> 1844.06 | L128: ='Calc|Customer tariff'!K112 -> 1980.528 | M128: ='Calc|Customer tariff'!K118 -> 2128.439
C129: Metering charges | D129: Calc|Customer tariff | E129: $ per annum | F129: Nominal | H129: ='Input|2015 tariffs'!F48 -> 226.32 | I129: ='Input|2016 proposed tariffs'!F48 -> 94.2187056 | J129: ='Input|2017 indicative tariffs'!F48 -> 96.59673057 | K129: ='Input|2018 indicative tariffs'!F48 -> 99.0347755 | L129: ='Input|2019 indicative tariffs'!F48 -> 101.5343553 | M129: ='Input|2020 indicative tariffs'!F48 -> 104.0970229
C131: Total charges | D131: Calculated | E131: $ per annum | F131: Nominal | H131: =SUM(H128:H129) -> 2267.766 | I131: =SUM(I128:I129) -> 1637.871706 | J131: =SUM(J128:J129) -> 2249.042731 | K131: =SUM(K128:K129) -> 1943.094775 | L131: =SUM(L128:L129) -> 2082.062355 | M131: =SUM(M128:M129) -> 2232.536023
C133: Year-on-year change | D133: Calculated | E133: $ per annum | F133: Nominal | I133: =I131-H131 -> -629.8942944 | J133: =J131-I131 -> 611.171025 | K133: =K131-J131 -> -305.9479551 | L133: =L131-K131 -> 138.9675798 | M133: =M131-L131 -> 150.4736677 | N133: =SUM(I133:M133) -> -35.22997706
C134: Year-on-year change | D134: Calculated | E134: per cent | F134: Nominal | I134: =I131/H131-1 -> -0.2777598281 | J134: =J131/I131-1 -> 0.3731495104 | K134: -0.1360347453 | L134: 0.07151868324 | M134: 0.0722714511 | N134: =M131/H131-1 -> -0.01553510241
C136: Large business - LV
C138: Large Business LV (A300 tariff LV 0.4 - 0.8 GWh)
C140: Tariff charges | D140: Calc|Customer tariff | E140: $ per annum | F140: Nominal | H140: ='Calc|Customer tariff'!K122 -> 25855.4735 | I140: ='Calc|Customer tariff'!K126 -> 26503.81685 | J140: ='Calc|Customer tariff'!K130 -> 27094.008 | K140: ='Calc|Customer tariff'!K134 -> 27260.8592 | L140: ='Calc|Customer tariff'!K138 -> 27948.3886 | M140: ='Calc|Customer tariff'!K142 -> 28657.386
C141: Metering charges | D141: Calc|Customer tariff | E141: $ per annum | F141: Nominal | O141: Note that large business customers' metering services are contestable and are therefore excluded from this analysis
C143: Total charges | D143: Calculated | E143: $ per annum | F143: Nominal | H143: =SUM(H140:H141) -> 25855.4735 | I143: =SUM(I140:I141) -> 26503.81685 | J143: =SUM(J140:J141) -> 27094.008 | K143: =SUM(K140:K141) -> 27260.8592 | L143: =SUM(L140:L141) -> 27948.3886 | M143: =SUM(M140:M141) -> 28657.386
C145: Year-on-year change | D145: Calculated | E145: $ per annum | F145: Nominal | I145: =I143-H143 -> 648.34335 | J145: =J143-I143 -> 590.19115 | K145: =K143-J143 -> 166.8512 | L145: =L143-K143 -> 687.5294 | M145: =M143-L143 -> 708.9974 | N145: =SUM(I145:M145) -> 2801.9125
C146: Year-on-year change | D146: Calculated | E146: per cent | F146: Nominal | I146: =I143/H143-1 -> 0.02507567111 | J146: =J143/I143-1 -> 0.02226815682 | K146: =K143/J143-1 -> 0.006158232477 | L146: =L143/K143-1 -> 0.0252203863 | M146: =M143/L143-1 -> 0.02536809582 | N146: =M143/H143-1 -> 0.1083682532
C148: Large business - HV
C150: Large Business HV (A400 tariff)
C152: Tariff charges | D152: Calc|Customer tariff | E152: $ per annum | F152: Nominal | H152: ='Calc|Customer tariff'!K123 -> 219811.1951 | I152: ='Calc|Customer tariff'!K127 -> 225225.9723 | J152: ='Calc|Customer tariff'!K131 -> 231807.66 | K152: ='Calc|Customer tariff'!K135 -> 233139.123 | L152: ='Calc|Customer tariff'!K139 -> 238911.391 | M152: ='Calc|Customer tariff'!K143 -> 244831.891
C153: Metering charges | D153: Calc|Customer tariff | E153: $ per annum | F153: Nominal | O153: Note that large business customers' metering services are contestable and are therefore excluded from this analysis
C155: Total charges | D155: Calculated | E155: $ per annum | F155: Nominal | H155: =SUM(H152:H153) -> 219811.1951 | I155: =SUM(I152:I153) -> 225225.9723 | J155: =SUM(J152:J153) -> 231807.66 | K155: 233139.123 | L155: 238911.391 | M155: 244831.891
C157: Year-on-year change | D157: Calculated | E157: $ per annum | F157: Nominal | I157: =I155-H155 -> 5414.7772 | J157: =J155-I155 -> 6581.6877 | K157: 1331.463 | L157: 5772.268 | M157: 5920.5 | N157: =SUM(I157:M157) -> 25020.6959
C158: Year-on-year change | D158: Calculated | E158: per cent | F158: Nominal | I158: =I155/H155-1 -> 0.02463376443 | J158: =J155/I155-1 -> 0.02922259646 | K158: 0.005743826585 | L158: 0.024758899 | M158: 0.02478115411 | N158: =M155/H155-1 -> 0.1138281237
